{"text_format":"2","workbook":"xlsx","n_sheets":1,"sheets":["Приложение 5"],"not_rendered":{"charts":0,"images":0,"macros":0,"external_links":0,"defined_names":3,"comments":0,"pivot_tables":0},"unopened":[],"bounds":{"document_bytes":16777216,"sheet_cells":100000,"run_cost":"one","rows_first":2000,"rows_last":500,"rows_between":2000,"halvings":0,"cell_chars":16384,"cell_head_chars":4096},"cells_cut":0,"cells_raw":0,"read":"whole","date_system":"1900"}

{"sheet":"Приложение 5","index":0,"n_rows":502,"n_cols":43,"rows_kept":502,"cut":false,"hidden":false,"merged":[[6,40,7,40],[6,41,6,42],[6,33,6,34],[6,35,7,35],[6,36,7,36],[6,37,6,38],[6,39,7,39],[6,27,7,27],[6,28,7,28],[6,29,6,30],[6,31,7,31],[6,32,7,32],[5,39,5,42],[6,7,7,7],[6,8,7,8],[6,9,6,10],[6,11,7,11],[6,12,7,12],[6,13,6,14],[6,15,7,15],[6,16,7,16],[6,17,6,18],[6,19,7,19],[6,20,7,20],[6,21,6,22],[6,23,7,23],[6,24,7,24],[6,25,6,26],[5,19,5,22],[5,23,5,26],[5,27,5,30],[5,31,5,34],[5,35,5,38],[0,5,0,6],[0,40,0,42],[2,0,2,6],[4,0,7,0],[4,1,7,1],[4,2,7,2],[4,3,7,3],[4,4,7,4],[4,5,7,5],[4,6,7,6],[4,7,4,18],[4,19,4,30],[4,31,4,42],[5,7,5,10],[5,11,5,14],[5,15,5,18]]}
[]
[]
["СВОДНЫЙ ПЛАН-ГРАФИК\nдогазификации территорий ведения гражданами садоводства  для собственных нужд"]
[]
["№ п/п","Муниципальное образование","Наименование населенного пункта","Наименование садоводческого некоммерческого товарищества","Общее количество\nнегазифицированных\nдомовладений в населенном\nпункте, расположенных\nв границах территории\nсадоводства, штук","Общее количество\nдомовладений\nв населенном пункте, расположенных в границах\nтерритории садоводства,\nдля которых по состоянию\nна 1 сентября 2021 г. создана\nтехническая возможность\nподключения, штук","Наименование газораспределительной организации","График реализации догазификации домовладений в населенном пункте,\nрасположенных в границах территории садоводства",{"$nulls":11},"График реализации догазификации домовладений в населенном пункте,\nрасположенных в границах территории садоводства",{"$nulls":11},"График реализации догазификации домовладений в населенном пункте,\nрасположенных в границах территории садоводства"]
[{"$nulls":7},"2024 год",null,null,null,"2025 год",null,null,null,"2026 год",null,null,null,"2027 год",null,null,null,"2028 год",null,null,null,"2029 год",null,null,null,"2030 год",null,null,null,"2031 год",null,null,null,"2032 год"]
[{"$nulls":7},"количество домовладений\nв населенном пункте, расположенных\nв границах территории садоводства, подключаемых\nк газораспределительным сетям,\nштук","общее количество домовладений\nв населенном пункте, расположенных в границах территории садоводства, для\nкоторых создается техническая\nвозможность подключения,\nштук","срок догазификации (месяц)",null,"количество домовладений\nв населенном пункте, расположенных\nв границах территории садоводства, подключаемых\nк газораспределительным сетям,\nштук","общее количество домовладений\nв населенном пункте, расположенных в границах территории садоводства, для\nкоторых создается техническая\nвозможность подключения,\nштук","Срок догазификации (месяц)",null,"количество домовладений\nв населенном пункте, расположенных\nв границах территории садоводства, подключаемых\nк газораспределительным сетям,\nштук","общее количество домовладений\nв населенном пункте, расположенных в границах территории садоводства, для\nкоторых создается техническая\nвозможность подключения,\nштук","Срок догазификации (месяц)",null,"количество домовладений\nв населенном пункте, расположенных\nв границах территории садоводства, подключаемых\nк газораспределительным сетям,\nштук","общее количество домовладений\nв населенном пункте, расположенных в границах территории садоводства, для\nкоторых создается техническая\nвозможность подключения,\nштук","Срок догазификации (месяц)",null,"количество домовладений\nв населенном пункте, расположенных\nв границах территории садоводства, подключаемых\nк газораспределительным сетям,\nштук","общее количество домовладений\nв населенном пункте, расположенных в границах территории садоводства, для\nкоторых создается техническая\nвозможность подключения,\nштук","Срок догазификации (месяц)",null,"количество домовладений\nв населенном пункте, расположенных\nв границах территории садоводства, подключаемых\nк газораспределительным сетям,\nштук","общее количество домовладений\nв населенном пункте, расположенных в границах территории садоводства, для\nкоторых создается техническая\nвозможность подключения,\nштук","Срок догазификации (месяц)",null,"количество домовладений\nв населенном пункте, расположенных\nв границах территории садоводства, подключаемых\nк газораспределительным сетям,\nштук","общее количество домовладений\nв населенном пункте, расположенных в границах территории садоводства, для\nкоторых создается техническая\nвозможность подключения,\nштук","Срок догазификации (месяц)",null,"количество домовладений\nв населенном пункте, расположенных\nв границах территории садоводства, подключаемых\nк газораспределительным сетям,\nштук","общее количество домовладений\nв населенном пункте, расположенных в границах территории садоводства, для\nкоторых создается техническая\nвозможность подключения,\nштук","Срок догазификации (месяц)",null,"количество домовладений\nв населенном пункте, расположенных\nв границах территории садоводства, подключаемых\nк газораспределительным сетям,\nштук","общее количество домовладений\nв населенном пункте, расположенных в границах территории садоводства, для\nкоторых создается техническая\nвозможность подключения,\nштук","Срок догазификации (месяц)"]
[{"$nulls":9},"начало","окончание",null,null,"начало","окончание",null,null,"начало","окончание",null,null,"начало","окончание",null,null,"начало","окончание",null,null,"начало","окончание",null,null,"начало","окончание",null,null,"начало","окончание",null,null,"начало","окончание"]
[1,2,3,4,5,6,7,8,9,10,11,12,13,14,15,16,17,18,19,20,21,22,23,24,25,26,27,28,29,30,31,32,33,34,35,36,37,38,39,40,41,42,43]
[1,"Аргаяшский муниципальный район","с Аргаяш","СНТ № 1",4,0,"АО «Газпром газораспределение Челябинск»",{"$nulls":16},4,null,"январь","декабрь"]
[2,"Аргаяшский муниципальный район","с Аргаяш","СНТ № 2 ",18,0,"АО «Газпром газораспределение Челябинск»",{"$nulls":16},18,null,"январь","декабрь"]
[3,"Аргаяшский муниципальный район","с Аргаяш","СНТ № 3 ",6,0,"АО «Газпром газораспределение Челябинск»",{"$nulls":8},6,null,"январь","декабрь"]
[4,"Ашинский муниципальный район","г Аша","СНТ № 1 Мебельщик",1,0,"АО «Газпром газораспределение Челябинск»",{"$nulls":8},1,null,"январь","декабрь"]
[5,"Ашинский муниципальный район","г Аша","СНТ № 1 Металлург",8,0,"АО «Газпром газораспределение Челябинск»",{"$nulls":16},8,null,"январь","декабрь"]
[6,"Ашинский муниципальный район","г Аша","СНТ № 10 Юбилейный",23,0,"АО «Газпром газораспределение Челябинск»",{"$nulls":16},23,null,"январь","декабрь"]
[7,"Ашинский муниципальный район","г Аша","СНТ № 13 Металлург",12,0,"АО «Газпром газораспределение Челябинск»",{"$nulls":8},12,null,"январь","декабрь"]
[8,"Ашинский муниципальный район","г Аша","СНТ № 13А",1,0,"АО «Газпром газораспределение Челябинск»",{"$nulls":8},1,null,"январь","декабрь"]
[9,"Ашинский муниципальный район","г Аша","СНТ № 2 Металлург",3,0,"АО «Газпром газораспределение Челябинск»",{"$nulls":16},3,null,"январь","декабрь"]
[10,"Ашинский муниципальный район","г Аша","СНТ № 3 Металлург",1,0,"АО «Газпром газораспределение Челябинск»",{"$nulls":8},1,null,"январь","декабрь"]
[11,"Ашинский муниципальный район","г Аша","СНТ № 4 Химик",2,0,"АО «Газпром газораспределение Челябинск»",{"$nulls":16},2,null,"январь","декабрь"]
[12,"Ашинский муниципальный район","г Аша","СНТ № 5",62,0,"АО «Газпром газораспределение Челябинск»",{"$nulls":16},62,null,"январь","декабрь"]
[13,"Ашинский муниципальный район","г Аша","СНТ № 7 Березовая поляна",36,0,"АО «Газпром газораспределение Челябинск»",{"$nulls":16},36,null,"январь","декабрь"]
[14,"Ашинский муниципальный район","г Аша","СНТ № 8 Гудок",19,0,"АО «Газпром газораспределение Челябинск»",{"$nulls":8},19,null,"январь","декабрь"]
[15,"Ашинский муниципальный район","г Аша","СНТ № 9 Химик",14,0,"АО «Газпром газораспределение Челябинск»",{"$nulls":16},14,null,"январь","декабрь"]
[16,"Ашинский муниципальный район","г Аша","СНТ Коллективный сад № 12",6,0,"АО «Газпром газораспределение Челябинск»",{"$nulls":16},6,null,"январь","декабрь"]
[17,"Ашинский муниципальный район","г Аша","СНТ Литейщик",1,0,"АО «Газпром газораспределение Челябинск»",{"$nulls":8},1,null,"январь","декабрь"]
[18,"Ашинский муниципальный район","г Аша","СНТ Сад № 1",1,0,"АО «Газпром газораспределение Челябинск»",{"$nulls":8},1,null,"январь","декабрь"]
[19,"Ашинский муниципальный район","г Аша","СНТ Сад № 14",9,0,"АО «Газпром газораспределение Челябинск»",{"$nulls":16},9,null,"январь","декабрь"]
[20,"Ашинский муниципальный район","г Аша","СНТ Сад № 5а",13,0,"АО «Газпром газораспределение Челябинск»",{"$nulls":16},13,null,"январь","декабрь"]
[21,"Ашинский муниципальный район","г Аша","СНТ Сад № 6 Строитель",21,0,"АО «Газпром газораспределение Челябинск»",{"$nulls":16},21,null,"январь","декабрь"]
[22,"Ашинский муниципальный район","г Миньяр","СНТ № 4 ",4,0,"АО «Газпром газораспределение Челябинск»",{"$nulls":8},4,null,"январь","декабрь"]
[23,"Ашинский муниципальный район","г Миньяр","СНТ № 5 Горняк",7,0,"АО «Газпром газораспределение Челябинск»",{"$nulls":8},7,null,"январь","декабрь"]
[24,"Ашинский муниципальный район","г Миньяр","СНТ № 6",36,0,"АО «Газпром газораспределение Челябинск»",{"$nulls":8},36,null,"январь","декабрь"]
[25,"Ашинский муниципальный район","г Миньяр","СНТ Романова гора",1,0,"АО «Газпром газораспределение Челябинск»",{"$nulls":8},1,null,"январь","декабрь"]
[26,"Ашинский муниципальный район","г Сим","СНТ № 1",1,0,"АО «Газпром газораспределение Челябинск»",{"$nulls":8},1,null,"январь","декабрь"]
[27,"Ашинский муниципальный район","г Сим","СНТ № 9",1,0,"АО «Газпром газораспределение Челябинск»",{"$nulls":8},1,null,"январь","декабрь"]
[28,"Верхнеуральский муниципальный район","г Верхнеуральск","Сад Дружба",1,0,"АО «Газпром газораспределение Челябинск»",{"$nulls":8},1,null,"январь","декабрь"]
[29,"Верхнеуральский муниципальный район","п Смеловский","СНТ Мечта",2,0,"АО «Газпром газораспределение Челябинск»",{"$nulls":8},2,null,"январь","декабрь"]
[30,"Верхнеуральский муниципальный район","рп Межозерный","СНТ Узельга-2",3,0,"АО «Газпром газораспределение Челябинск»",{"$nulls":8},3,null,"январь","декабрь"]
[31,"Верхнеуральский муниципальный район","рп Межозерный","СНТ Урал",1,0,"АО «Газпром газораспределение Челябинск»",{"$nulls":8},1,null,"январь","декабрь"]
[32,"Верхнеуфалейский городской округ","г Верхний Уфалей","Сад Березка",1,0,"АО «Газпром газораспределение Челябинск»",{"$nulls":16},1,null,"январь","декабрь"]
[33,"Верхнеуфалейский городской округ","г Верхний Уфалей","Сад Виктория",301,0,"АО «Газпром газораспределение Челябинск»",{"$nulls":16},301,null,"январь","декабрь"]
[34,"Верхнеуфалейский городской округ","г Верхний Уфалей","Сад Горняк",1,0,"АО «Газпром газораспределение Челябинск»",{"$nulls":16},1,null,"январь","декабрь"]
[35,"Верхнеуфалейский городской округ","г Верхний Уфалей","Сад Дружба",109,0,"АО «Газпром газораспределение Челябинск»",{"$nulls":16},109,null,"январь","декабрь"]
[36,"Верхнеуфалейский городской округ","г Верхний Уфалей","Сад Машиностроитель",288,0,"АО «Газпром газораспределение Челябинск»",{"$nulls":16},288,null,"январь","декабрь"]
[37,"Верхнеуфалейский городской округ","г Верхний Уфалей","Сад Металлург",1,0,"АО «Газпром газораспределение Челябинск»",{"$nulls":16},1,null,"январь","декабрь"]
[38,"Верхнеуфалейский городской округ","г Верхний Уфалей","Сад Никельщик",94,0,"АО «Газпром газораспределение Челябинск»",{"$nulls":16},94,null,"январь","декабрь"]
[39,"Верхнеуфалейский городской округ","г Верхний Уфалей","Сад Радуга",221,0,"АО «Газпром газораспределение Челябинск»",{"$nulls":16},221,null,"январь","декабрь"]
[40,"Верхнеуфалейский городской округ","г Верхний Уфалей","Сад Солнечный",105,0,"АО «Газпром газораспределение Челябинск»",{"$nulls":16},105,null,"январь","декабрь"]
[41,"Верхнеуфалейский городской округ","г Верхний Уфалей","Сад Удачный",23,0,"АО «Газпром газораспределение Челябинск»",{"$nulls":16},23,null,"январь","декабрь"]
[42,"Верхнеуфалейский городской округ","г Верхний Уфалей","Сад Урал",174,0,"АО «Газпром газораспределение Челябинск»",{"$nulls":16},174,null,"январь","декабрь"]
[43,"Верхнеуфалейский городской округ","п Черемшанка","СНТ Березка",32,0,"АО «Газпром газораспределение Челябинск»",{"$nulls":8},32,null,"январь","декабрь"]
[44,"Верхнеуфалейский городской округ","п Черемшанка","СНТ Горняк",24,0,"АО «Газпром газораспределение Челябинск»",{"$nulls":8},24,null,"январь","декабрь"]
[45,"Еманжелинский муниципальный район","г Еманжелинск","СНТ Весенний",2,0,"АО «Газпром газораспределение Челябинск»",{"$nulls":8},2,null,"январь","декабрь"]
[46,"Еманжелинский муниципальный район","г Еманжелинск","СНТ Вишневый",1,0,"АО «Газпром газораспределение Челябинск»",{"$nulls":8},1,null,"январь","декабрь"]
[47,"Еманжелинский муниципальный район","г Еманжелинск","СНТ Восход",18,0,"АО «Газпром газораспределение Челябинск»",{"$nulls":8},18,null,"январь","декабрь"]
[48,"Еманжелинский муниципальный район","г Еманжелинск","СНТ Дружба",22,0,"АО «Газпром газораспределение Челябинск»",{"$nulls":8},22,null,"январь","декабрь"]
[49,"Еманжелинский муниципальный район","г Еманжелинск","СНТ Колосок",33,0,"АО «Газпром газораспределение Челябинск»",{"$nulls":8},33,null,"январь","декабрь"]
[50,"Еманжелинский муниципальный район","г Еманжелинск","СНТ Сигнал",12,0,"АО «Газпром газораспределение Челябинск»",{"$nulls":8},12,null,"январь","декабрь"]
[51,"Еманжелинский муниципальный район","г Еманжелинск","СНТ Шахтер",39,0,"АО «Газпром газораспределение Челябинск»",{"$nulls":8},39,null,"январь","декабрь"]
[52,"Еманжелинский муниципальный район","рп Зауральский","СНТ Березка",23,0,"АО «Газпром газораспределение Челябинск»",{"$nulls":8},23,null,"январь","декабрь"]
[53,"Еманжелинский муниципальный район","рп Зауральский","СНТ Живая защита ",19,0,"АО «Газпром газораспределение Челябинск»",{"$nulls":8},19,null,"январь","декабрь"]
[54,"Еманжелинский муниципальный район","рп Зауральский","СНТ Заря",19,0,"АО «Газпром газораспределение Челябинск»",{"$nulls":8},19,null,"январь","декабрь"]
[55,"Еманжелинский муниципальный район","рп Зауральский","СНТ Сосенки",2,0,"АО «Газпром газораспределение Челябинск»",{"$nulls":8},2,null,"январь","декабрь"]
[56,"Еманжелинский муниципальный район","рп Красногорский","СНТ Восход-2",1,0,"АО «Газпром газораспределение Челябинск»",{"$nulls":8},1,null,"январь","декабрь"]
[57,"Еманжелинский муниципальный район","рп Красногорский","СНТ Дружба-2",3,0,"АО «Газпром газораспределение Челябинск»",{"$nulls":8},3,null,"январь","декабрь"]
[58,"Еманжелинский муниципальный район","рп Красногорский","СНТ Заря-2",3,0,"АО «Газпром газораспределение Челябинск»",{"$nulls":8},3,null,"январь","декабрь"]
[59,"Еманжелинский муниципальный район","рп Красногорский","СНТ Шахтер-2",2,0,"АО «Газпром газораспределение Челябинск»",{"$nulls":8},2,null,"январь","декабрь"]
[60,"Еткульский муниципальный район","с Еткуль","СНТ Нефтяник",63,0,"АО «Газпром газораспределение Челябинск»",{"$nulls":8},63,null,"январь","декабрь"]
[61,"Златоустовский городской округ","г Златоуст","К/с № 1 треста Златоустметаллургстрой",1,0,"АО «Газпром газораспределение Челябинск»",{"$nulls":8},1,null,"январь","декабрь"]
[62,"Златоустовский городской округ","г Златоуст","Сад № 6 ПО ЗМЗ",1,0,"АО «Газпром газораспределение Челябинск»",{"$nulls":8},1,null,"январь","декабрь"]
[63,"Златоустовский городской округ","г Златоуст","Сад № 6 Южный",1,0,"АО «Газпром газораспределение Челябинск»",{"$nulls":8},1,null,"январь","декабрь"]
[64,"Златоустовский городской округ","г Златоуст","СНТ 40 лет Победы № 11",45,0,"АО «Газпром газораспределение Челябинск»",{"$nulls":8},45,null,"январь","декабрь"]
[65,"Златоустовский городской округ","г Златоуст","СНТ № 1 ПО ЗМЗ",1,0,"АО «Газпром газораспределение Челябинск»",{"$nulls":8},1,null,"январь","декабрь"]
[66,"Златоустовский городской округ","г Златоуст","СНТ № 1 СПМУ-2",2,0,"АО «Газпром газораспределение Челябинск»",{"$nulls":8},2,null,"январь","декабрь"]
[67,"Златоустовский городской округ","г Златоуст","СНТ № 11 ПО ЗМЗ",1,0,"АО «Газпром газораспределение Челябинск»",{"$nulls":8},1,null,"январь","декабрь"]
[68,"Златоустовский городской округ","г Златоуст","СНТ № 12 Машзавод",1,0,"АО «Газпром газораспределение Челябинск»",{"$nulls":8},1,null,"январь","декабрь"]
[69,"Златоустовский городской округ","г Златоуст","СНТ № 12 ПО ЗМЗ",2,0,"АО «Газпром газораспределение Челябинск»",{"$nulls":8},2,null,"январь","декабрь"]
[70,"Златоустовский городской округ","г Златоуст","СНТ № 14 ПО ЗМЗ",9,0,"АО «Газпром газораспределение Челябинск»",{"$nulls":8},9,null,"январь","декабрь"]
[71,"Златоустовский городской округ","г Златоуст","СНТ № 17 ПО ЗМЗ",107,0,"АО «Газпром газораспределение Челябинск»",{"$nulls":8},107,null,"январь","декабрь"]
[72,"Златоустовский городской округ","г Златоуст","СНТ № 1А ПО ЗМЗ",2,0,"АО «Газпром газораспределение Челябинск»",{"$nulls":8},2,null,"январь","декабрь"]
[73,"Златоустовский городской округ","г Златоуст","СНТ № 2 ПО Булат",2,0,"АО «Газпром газораспределение Челябинск»",{"$nulls":8},2,null,"январь","декабрь"]
[74,"Златоустовский городской округ","г Златоуст","СНТ № 2 трест Уралавтострой",9,0,"АО «Газпром газораспределение Челябинск»",{"$nulls":8},9,null,"январь","декабрь"]
[75,"Златоустовский городской округ","г Златоуст","СНТ № 2 Уралавтострой",1,0,"АО «Газпром газораспределение Челябинск»",{"$nulls":8},1,null,"январь","декабрь"]
[76,"Златоустовский городской округ","г Златоуст","СНТ № 3 з-да им. Ленина",3,0,"АО «Газпром газораспределение Челябинск»",{"$nulls":8},3,null,"январь","декабрь"]
[77,"Златоустовский городской округ","г Златоуст","СНТ № 3 ПО ЗМЗ",4,0,"АО «Газпром газораспределение Челябинск»",{"$nulls":8},4,null,"январь","декабрь"]
[78,"Златоустовский городской округ","г Златоуст","СНТ № 3 ПО Машзавод",2,0,"АО «Газпром газораспределение Челябинск»",{"$nulls":8},2,null,"январь","декабрь"]
[79,"Златоустовский городской округ","г Златоуст","СНТ № 3 трест Златоустметаллургстрой",1,0,"АО «Газпром газораспределение Челябинск»",{"$nulls":8},1,null,"январь","декабрь"]
[80,"Златоустовский городской округ","г Златоуст","СНТ № 4 з-да им. Ленина",4,0,"АО «Газпром газораспределение Челябинск»",{"$nulls":8},4,null,"январь","декабрь"]
[81,"Златоустовский городской округ","г Златоуст","СНТ № 4 ПО ЗМЗ",7,0,"АО «Газпром газораспределение Челябинск»",{"$nulls":8},7,null,"январь","декабрь"]
[82,"Златоустовский городской округ","г Златоуст","СНТ № 4 Юбилейный",102,0,"АО «Газпром газораспределение Челябинск»",{"$nulls":8},102,null,"январь","декабрь"]
[83,"Златоустовский городской округ","г Златоуст","СНТ № 5 ПО Булат",1,0,"АО «Газпром газораспределение Челябинск»",{"$nulls":8},1,null,"январь","декабрь"]
[84,"Златоустовский городской округ","г Златоуст","СНТ № 5 ПО ЗМЗ",103,0,"АО «Газпром газораспределение Челябинск»",{"$nulls":8},103,null,"январь","декабрь"]
[85,"Златоустовский городской округ","г Златоуст","СНТ № 5 ПО Машзавод",7,0,"АО «Газпром газораспределение Челябинск»",{"$nulls":8},7,null,"январь","декабрь"]
[86,"Златоустовский городской округ","г Златоуст","СНТ № 7 з-да им. Ленина",29,0,"АО «Газпром газораспределение Челябинск»",{"$nulls":8},29,null,"январь","декабрь"]
[87,"Златоустовский городской округ","г Златоуст","СНТ № 7 ПО ЗМЗ",13,0,"АО «Газпром газораспределение Челябинск»",{"$nulls":8},13,null,"январь","декабрь"]
[88,"Златоустовский городской округ","г Златоуст","СНТ № 8 ПО ЗМЗ",73,0,"АО «Газпром газораспределение Челябинск»",{"$nulls":8},73,null,"январь","декабрь"]
[89,"Златоустовский городской округ","г Златоуст","СНТ Автомобилист",3,0,"АО «Газпром газораспределение Челябинск»",{"$nulls":8},3,null,"январь","декабрь"]
[90,"Златоустовский городской округ","г Златоуст","СНТ Автотранспортник",25,0,"АО «Газпром газораспределение Челябинск»",{"$nulls":8},25,null,"январь","декабрь"]
[91,"Златоустовский городской округ","г Златоуст","СНТ Белый ключ",175,0,"АО «Газпром газораспределение Челябинск»",{"$nulls":8},175,null,"январь","декабрь"]
[92,"Златоустовский городской округ","г Златоуст","СНТ Березка",151,0,"АО «Газпром газораспределение Челябинск»",{"$nulls":8},151,null,"январь","декабрь"]
[93,"Златоустовский городской округ","г Златоуст","СНТ Булат",1,0,"АО «Газпром газораспределение Челябинск»",{"$nulls":8},1,null,"январь","декабрь"]
[94,"Златоустовский городской округ","г Златоуст","СНТ Булат 3А",23,0,"АО «Газпром газораспределение Челябинск»",{"$nulls":8},23,null,"январь","декабрь"]
[95,"Златоустовский городской округ","г Златоуст","СНТ Булат № 6",33,0,"АО «Газпром газораспределение Челябинск»",{"$nulls":8},33,null,"январь","декабрь"]
[96,"Златоустовский городской округ","г Златоуст","СНТ Булат-2",1,0,"АО «Газпром газораспределение Челябинск»",{"$nulls":8},1,null,"январь","декабрь"]
[97,"Златоустовский городской округ","г Златоуст","СНТ Булат-6",101,0,"АО «Газпром газораспределение Челябинск»",{"$nulls":8},101,null,"январь","декабрь"]
[98,"Златоустовский городской округ","г Златоуст","СНТ Ветеран",77,0,"АО «Газпром газораспределение Челябинск»",{"$nulls":8},77,null,"январь","декабрь"]
[99,"Златоустовский городской округ","г Златоуст","СНТ Ветеран-2",1,0,"АО «Газпром газораспределение Челябинск»",{"$nulls":8},1,null,"январь","декабрь"]
[100,"Златоустовский городской округ","г Златоуст","СНТ Виктория",25,0,"АО «Газпром газораспределение Челябинск»",{"$nulls":8},25,null,"январь","декабрь"]
[101,"Златоустовский городской округ","г Златоуст","СНТ Восточный",49,0,"АО «Газпром газораспределение Челябинск»",{"$nulls":8},49,null,"январь","декабрь"]
[102,"Златоустовский городской округ","г Златоуст","СНТ Высоковольтник",150,0,"АО «Газпром газораспределение Челябинск»",{"$nulls":8},150,null,"январь","декабрь"]
[103,"Златоустовский городской округ","г Златоуст","СНТ Горный",53,0,"АО «Газпром газораспределение Челябинск»",{"$nulls":8},53,null,"январь","декабрь"]
[104,"Златоустовский городской округ","г Златоуст","СНТ Горпищеторг",49,0,"АО «Газпром газораспределение Челябинск»",{"$nulls":8},49,null,"январь","декабрь"]
[105,"Златоустовский городской округ","г Златоуст","СНТ Горпромторг",23,0,"АО «Газпром газораспределение Челябинск»",{"$nulls":8},23,null,"январь","декабрь"]
[106,"Златоустовский городской округ","г Златоуст","СНТ Дзержинец",5,0,"АО «Газпром газораспределение Челябинск»",{"$nulls":8},5,null,"январь","декабрь"]
[107,"Златоустовский городской округ","г Златоуст","СНТ им В.И. Ленина № 2",60,0,"АО «Газпром газораспределение Челябинск»",{"$nulls":8},60,null,"январь","декабрь"]
[108,"Златоустовский городской округ","г Златоуст","СНТ Ленина-5",172,0,"АО «Газпром газораспределение Челябинск»",{"$nulls":8},172,null,"январь","декабрь"]
[109,"Златоустовский городской округ","г Златоуст","СНТ Локомотив",3,0,"АО «Газпром газораспределение Челябинск»",{"$nulls":8},3,null,"январь","декабрь"]
[110,"Златоустовский городской округ","г Златоуст","СНТ Локомотив-1",149,0,"АО «Газпром газораспределение Челябинск»",{"$nulls":8},149,null,"январь","декабрь"]
[111,"Златоустовский городской округ","г Златоуст","СНТ Локомотив-2",71,0,"АО «Газпром газораспределение Челябинск»",{"$nulls":8},71,null,"январь","декабрь"]
[112,"Златоустовский городской округ","г Златоуст","СНТ Локомотив-3",126,0,"АО «Газпром газораспределение Челябинск»",{"$nulls":8},126,null,"январь","декабрь"]
[113,"Златоустовский городской округ","г Златоуст","СНТ Локомотив-4",1,0,"АО «Газпром газораспределение Челябинск»",{"$nulls":8},1,null,"январь","декабрь"]
[114,"Златоустовский городской округ","г Златоуст","СНТ Локомотив-5",63,0,"АО «Газпром газораспределение Челябинск»",{"$nulls":8},63,null,"январь","декабрь"]
[115,"Златоустовский городской округ","г Златоуст","СНТ Локомотив-7",3,0,"АО «Газпром газораспределение Челябинск»",{"$nulls":8},3,null,"январь","декабрь"]
[116,"Златоустовский городской округ","г Златоуст","СНТ Машзавод-3",90,0,"АО «Газпром газораспределение Челябинск»",{"$nulls":8},90,null,"январь","декабрь"]
[117,"Златоустовский городской округ","г Златоуст","СНТ Машзавод-7",60,0,"АО «Газпром газораспределение Челябинск»",{"$nulls":8},60,null,"январь","декабрь"]
[118,"Златоустовский городской округ","г Златоуст","СНТ Машиностроитель-4",8,0,"АО «Газпром газораспределение Челябинск»",{"$nulls":8},8,null,"январь","декабрь"]
[119,"Златоустовский городской округ","г Златоуст","СНТ Машиностроитель-4А",44,0,"АО «Газпром газораспределение Челябинск»",{"$nulls":8},44,null,"январь","декабрь"]
[120,"Златоустовский городской округ","г Златоуст","СНТ Медик-1",20,0,"АО «Газпром газораспределение Челябинск»",{"$nulls":8},20,null,"январь","декабрь"]
[121,"Златоустовский городской округ","г Златоуст","СНТ Медик-2",54,0,"АО «Газпром газораспределение Челябинск»",{"$nulls":8},54,null,"январь","декабрь"]
[122,"Златоустовский городской округ","г Златоуст","СНТ Медик-3",13,0,"АО «Газпром газораспределение Челябинск»",{"$nulls":8},13,null,"январь","декабрь"]
[123,"Златоустовский городской округ","г Златоуст","СНТ Металлист",9,0,"АО «Газпром газораспределение Челябинск»",{"$nulls":8},9,null,"январь","декабрь"]
[124,"Златоустовский городской округ","г Златоуст","СНТ Металлург",38,0,"АО «Газпром газораспределение Челябинск»",{"$nulls":8},38,null,"январь","декабрь"]
[125,"Златоустовский городской округ","г Златоуст","СНТ Металлург-Губенка",2,0,"АО «Газпром газораспределение Челябинск»",{"$nulls":8},2,null,"январь","декабрь"]
[126,"Златоустовский городской округ","г Златоуст","СНТ Металлургсад",4,0,"АО «Газпром газораспределение Челябинск»",{"$nulls":8},4,null,"январь","декабрь"]
[127,"Златоустовский городской округ","г Златоуст","СНТ Мясокомбинат",1,0,"АО «Газпром газораспределение Челябинск»",{"$nulls":8},1,null,"январь","декабрь"]
[128,"Златоустовский городской округ","г Златоуст","СНТ Надежда",25,0,"АО «Газпром газораспределение Челябинск»",{"$nulls":8},25,null,"январь","декабрь"]
[129,"Златоустовский городской округ","г Златоуст","СНТ Оазис",1,0,"АО «Газпром газораспределение Челябинск»",{"$nulls":8},1,null,"январь","декабрь"]
[130,"Златоустовский городской округ","г Златоуст","СНТ Патриот",5,0,"АО «Газпром газораспределение Челябинск»",{"$nulls":8},5,null,"январь","декабрь"]
[131,"Златоустовский городской округ","г Златоуст","СНТ Приайский № 14",49,0,"АО «Газпром газораспределение Челябинск»",{"$nulls":8},49,null,"январь","декабрь"]
[132,"Златоустовский городской округ","г Златоуст","СНТ Рассвет",41,0,"АО «Газпром газораспределение Челябинск»",{"$nulls":8},41,null,"январь","декабрь"]
[133,"Златоустовский городской округ","г Златоуст","СНТ Ремонтник",71,0,"АО «Газпром газораспределение Челябинск»",{"$nulls":8},71,null,"январь","декабрь"]
[134,"Златоустовский городской округ","г Златоуст","СНТ Родник",61,0,"АО «Газпром газораспределение Челябинск»",{"$nulls":8},61,null,"январь","декабрь"]
[135,"Златоустовский городской округ","г Златоуст","СНТ Родниковый",66,0,"АО «Газпром газораспределение Челябинск»",{"$nulls":8},66,null,"январь","декабрь"]
[136,"Златоустовский городской округ","г Златоуст","СНТ Ручеек",9,0,"АО «Газпром газораспределение Челябинск»",{"$nulls":8},9,null,"январь","декабрь"]
[137,"Златоустовский городской округ","г Златоуст","СНТ Связист",5,0,"АО «Газпром газораспределение Челябинск»",{"$nulls":8},5,null,"январь","декабрь"]
[138,"Златоустовский городской округ","г Златоуст","СНТ Северный",103,0,"АО «Газпром газораспределение Челябинск»",{"$nulls":8},103,null,"январь","декабрь"]
[139,"Златоустовский городской округ","г Златоуст","СНТ Строитель-1",113,0,"АО «Газпром газораспределение Челябинск»",{"$nulls":8},113,null,"январь","декабрь"]
[140,"Златоустовский городской округ","г Златоуст","СНТ Строитель-2",320,0,"АО «Газпром газораспределение Челябинск»",{"$nulls":8},320,null,"январь","декабрь"]
[141,"Златоустовский городской округ","г Златоуст","СНТ Строитель-3",46,0,"АО «Газпром газораспределение Челябинск»",{"$nulls":8},46,null,"январь","декабрь"]
[142,"Златоустовский городской округ","г Златоуст","СНТ Таганай",30,0,"АО «Газпром газораспределение Челябинск»",{"$nulls":8},30,null,"январь","декабрь"]
[143,"Златоустовский городской округ","г Златоуст","СНТ Урал-2",17,0,"АО «Газпром газораспределение Челябинск»",{"$nulls":8},17,null,"январь","декабрь"]
[144,"Златоустовский городской округ","г Златоуст","СНТ Урал-4",39,0,"АО «Газпром газораспределение Челябинск»",{"$nulls":8},39,null,"январь","декабрь"]
[145,"Златоустовский городской округ","г Златоуст","СНТ Уралавтострой-4",3,0,"АО «Газпром газораспределение Челябинск»",{"$nulls":8},3,null,"январь","декабрь"]
[146,"Златоустовский городской округ","г Златоуст","СНТ Уралдомнаремонт",28,0,"АО «Газпром газораспределение Челябинск»",{"$nulls":8},28,null,"январь","декабрь"]
[147,"Златоустовский городской округ","г Златоуст","СНТ Уральские зори",130,0,"АО «Газпром газораспределение Челябинск»",{"$nulls":8},130,null,"январь","декабрь"]
[148,"Златоустовский городской округ","г Златоуст","СНТ Учитель",6,0,"АО «Газпром газораспределение Челябинск»",{"$nulls":8},6,null,"январь","декабрь"]
[149,"Златоустовский городской округ","г Златоуст","СНТ Часовщик",18,0,"АО «Газпром газораспределение Челябинск»",{"$nulls":8},18,null,"январь","декабрь"]
[150,"Златоустовский городской округ","г Златоуст","СНТ Швейник",132,0,"АО «Газпром газораспределение Челябинск»",{"$nulls":8},132,null,"январь","декабрь"]
[151,"Златоустовский городской округ","г Златоуст","СНТ Энергетик",86,0,"АО «Газпром газораспределение Челябинск»",{"$nulls":8},86,null,"январь","декабрь"]
[152,"Златоустовский городской округ","г Златоуст","СНТ Юбилейный",4,0,"АО «Газпром газораспределение Челябинск»",{"$nulls":8},4,null,"январь","декабрь"]
[153,"Златоустовский городской округ","г Златоуст","СНТ Южный",109,0,"АО «Газпром газораспределение Челябинск»",{"$nulls":8},109,null,"январь","декабрь"]
[154,"Карталинский муниципальный район","г Карталы","СНТ Березка",1,0,"АО «Газпром газораспределение Челябинск»",{"$nulls":8},1,null,"январь","декабрь"]
[155,"Карталинский муниципальный район","г Карталы","СНТ Виктория",7,0,"АО «Газпром газораспределение Челябинск»",{"$nulls":8},7,null,"январь","декабрь"]
[156,"Карталинский муниципальный район","г Карталы","СНТ Звезда",2,0,"АО «Газпром газораспределение Челябинск»",{"$nulls":8},2,null,"январь","декабрь"]
[157,"Карталинский муниципальный район","г Карталы","СНТ Локомотив",20,0,"АО «Газпром газораспределение Челябинск»",{"$nulls":8},20,null,"январь","декабрь"]
[158,"Карталинский муниципальный район","г Карталы","СНТ Машиностроитель",1,0,"АО «Газпром газораспределение Челябинск»",{"$nulls":8},1,null,"январь","декабрь"]
[159,"Каслинский муниципальный район","г Касли","СНТ Первомайское",346,0,"АО «Газпром газораспределение Челябинск»",{"$nulls":16},346,null,"январь","декабрь"]
[160,"Каслинский муниципальный район","г Касли","СНТ Ручеек",133,0,"АО «Газпром газораспределение Челябинск»",{"$nulls":8},133,null,"январь","декабрь"]
[161,"Катав-Ивановский муниципальный район","г Катав-Ивановск","СНТ Водоканал",39,0,"АО «Газпром газораспределение Челябинск»",{"$nulls":8},39,null,"январь","декабрь"]
[162,"Катав-Ивановский муниципальный район","г Катав-Ивановск","СНТ Лесовод",85,0,"АО «Газпром газораспределение Челябинск»",{"$nulls":8},85,null,"январь","декабрь"]
[163,"Катав-Ивановский муниципальный район","г Катав-Ивановск","СНТ Литейщик-1",44,0,"АО «Газпром газораспределение Челябинск»",{"$nulls":8},44,null,"январь","декабрь"]
[164,"Катав-Ивановский муниципальный район","г Катав-Ивановск","СНТ Литейщик-2",105,0,"АО «Газпром газораспределение Челябинск»",{"$nulls":8},105,null,"январь","декабрь"]
[165,"Катав-Ивановский муниципальный район","г Катав-Ивановск","СНТ Приборостроитель-1",69,0,"АО «Газпром газораспределение Челябинск»",{"$nulls":8},69,null,"январь","декабрь"]
[166,"Катав-Ивановский муниципальный район","г Катав-Ивановск","СНТ Цементник",102,0,"АО «Газпром газораспределение Челябинск»",{"$nulls":8},102,null,"январь","декабрь"]
[167,"Катав-Ивановский муниципальный район","г Юрюзань","СДТ им Г И Козелова",144,0,"АО «Газпром газораспределение Челябинск»",{"$nulls":8},144,null,"январь","декабрь"]
[168,"Катав-Ивановский муниципальный район","г Юрюзань","СНТ № 2",24,0,"АО «Газпром газораспределение Челябинск»",{"$nulls":8},24,null,"январь","декабрь"]
[169,"Катав-Ивановский муниципальный район","г Юрюзань","СНТ № 3 ",1,0,"АО «Газпром газораспределение Челябинск»",{"$nulls":8},1,null,"январь","декабрь"]
[170,"Катав-Ивановский муниципальный район","г Юрюзань","СНТ Прогресс",2,0,"АО «Газпром газораспределение Челябинск»",{"$nulls":8},2,null,"январь","декабрь"]
[171,"Копейский городской округ","г Копейск","СНТ Березка-1",366,0,"АО «Газпром газораспределение Челябинск»",{"$nulls":8},366,null,"январь","декабрь"]
[172,"Копейский городской округ","г Копейск","СНТ Березка-4",128,0,"АО «Газпром газораспределение Челябинск»",{"$nulls":8},128,null,"январь","декабрь"]
[173,"Копейский городской округ","г Копейск","СНТ Волна",34,0,"АО «Газпром газораспределение Челябинск»",{"$nulls":8},34,null,"январь","декабрь"]
[174,"Копейский городской округ","г Копейск","СНТ Дзержинец",3,0,"АО «Газпром газораспределение Челябинск»",{"$nulls":8},3,null,"январь","декабрь"]
[175,"Копейский городской округ","г Копейск","СНТ Дружба",464,0,"АО «Газпром газораспределение Челябинск»",{"$nulls":8},464,null,"январь","декабрь"]
[176,"Копейский городской округ","г Копейск","СНТ Железнодорожник",25,0,"АО «Газпром газораспределение Челябинск»",{"$nulls":8},25,null,"январь","декабрь"]
[177,"Копейский городской округ","г Копейск","СНТ Заря",4,0,"АО «Газпром газораспределение Челябинск»",{"$nulls":8},4,null,"январь","декабрь"]
[178,"Копейский городской округ","г Копейск","СНТ Кировец",200,0,"АО «Газпром газораспределение Челябинск»",{"$nulls":8},200,null,"январь","декабрь"]
[179,"Копейский городской округ","г Копейск","СНТ Коммунальщик",73,0,"АО «Газпром газораспределение Челябинск»",{"$nulls":8},73,null,"январь","декабрь"]
[180,"Копейский городской округ","г Копейск","СНТ Копейского ремонтно-механического завода",2,0,"АО «Газпром газораспределение Челябинск»",{"$nulls":8},2,null,"январь","декабрь"]
[181,"Копейский городской округ","г Копейск","СНТ Красная Горнячка",93,0,"АО «Газпром газораспределение Челябинск»",{"$nulls":8},93,null,"январь","декабрь"]
[182,"Копейский городской округ","г Копейск","СНТ Курочкино-1",93,0,"АО «Газпром газораспределение Челябинск»",{"$nulls":8},93,null,"январь","декабрь"]
[183,"Копейский городской округ","г Копейск","СНТ Курочкино-2",79,0,"АО «Газпром газораспределение Челябинск»",{"$nulls":8},79,null,"январь","декабрь"]
[184,"Копейский городской округ","г Копейск","СНТ Любитель",774,0,"АО «Газпром газораспределение Челябинск»",{"$nulls":8},774,null,"январь","декабрь"]
[185,"Копейский городской округ","г Копейск","СНТ Мебельщик",45,0,"АО «Газпром газораспределение Челябинск»",{"$nulls":8},45,null,"январь","декабрь"]
[186,"Копейский городской округ","г Копейск","СНТ Мичурина",19,0,"АО «Газпром газораспределение Челябинск»",{"$nulls":8},19,null,"январь","декабрь"]
[187,"Копейский городской округ","г Копейск","СНТ Объединенный",29,0,"АО «Газпром газораспределение Челябинск»",{"$nulls":8},29,null,"январь","декабрь"]
[188,"Копейский городской округ","г Копейск","СНТ Пластмасс",2,0,"АО «Газпром газораспределение Челябинск»",{"$nulls":8},2,null,"январь","декабрь"]
[189,"Копейский городской округ","г Копейск","СНТ Пластмасс-1",131,0,"АО «Газпром газораспределение Челябинск»",{"$nulls":8},131,null,"январь","декабрь"]
[190,"Копейский городской округ","г Копейск","СНТ Пластмасс-2",302,0,"АО «Газпром газораспределение Челябинск»",{"$nulls":8},302,null,"январь","декабрь"]
[191,"Копейский городской округ","г Копейск","СНТ Пластмасс-3",1,0,"АО «Газпром газораспределение Челябинск»",{"$nulls":8},1,null,"январь","декабрь"]
[192,"Копейский городской округ","г Копейск","СНТ Птицевод-1",274,0,"АО «Газпром газораспределение Челябинск»",{"$nulls":8},274,null,"январь","декабрь"]
[193,"Копейский городской округ","г Копейск","СНТ Станкостроитель-3",259,0,"АО «Газпром газораспределение Челябинск»",{"$nulls":8},259,null,"январь","декабрь"]
[194,"Копейский городской округ","г Копейск","СНТ Строитель",89,0,"АО «Газпром газораспределение Челябинск»",{"$nulls":8},89,null,"январь","декабрь"]
[195,"Копейский городской округ","г Копейск","СНТ Строитель-9",18,0,"АО «Газпром газораспределение Челябинск»",{"$nulls":8},18,null,"январь","декабрь"]
[196,"Копейский городской округ","г Копейск","СНТ Учитель",62,0,"АО «Газпром газораспределение Челябинск»",{"$nulls":8},62,null,"январь","декабрь"]
[197,"Копейский городской округ","г Копейск","СНТ Часовщик",11,0,"АО «Газпром газораспределение Челябинск»",{"$nulls":8},11,null,"январь","декабрь"]
[198,"Копейский городской округ","г Копейск","СНТ Шахтер",157,0,"АО «Газпром газораспределение Челябинск»",{"$nulls":8},157,null,"январь","декабрь"]
[199,"Копейский городской округ","г Копейск","СНТ шахты Центральная",2,0,"АО «Газпром газораспределение Челябинск»",{"$nulls":8},2,null,"январь","декабрь"]
[200,"Копейский городской округ","г Копейск","СНТ Юбилейный",16,0,"АО «Газпром газораспределение Челябинск»",{"$nulls":8},16,null,"январь","декабрь"]
[201,"Коркинский муниципальный округ","г Коркино","СНТ Вскрышник",42,0,"АО «Газпром газораспределение Челябинск»",{"$nulls":8},42,null,"январь","декабрь"]
[202,"Коркинский муниципальный округ","г Коркино","СНТ Динамовец",12,0,"АО «Газпром газораспределение Челябинск»",{"$nulls":8},12,null,"январь","декабрь"]
[203,"Коркинский муниципальный округ","г Коркино","СНТ Пригородный",15,0,"АО «Газпром газораспределение Челябинск»",{"$nulls":8},15,null,"январь","декабрь"]
[204,"Коркинский муниципальный округ","г Коркино","СНТ Рябинка",2,0,"АО «Газпром газораспределение Челябинск»",{"$nulls":8},2,null,"январь","декабрь"]
[205,"Коркинский муниципальный округ","г Коркино","СНТ Строитель",14,0,"АО «Газпром газораспределение Челябинск»",{"$nulls":8},14,null,"январь","декабрь"]
[206,"Коркинский муниципальный округ","г Коркино","СНТ Цементник-1",2,0,"АО «Газпром газораспределение Челябинск»",{"$nulls":8},2,null,"январь","декабрь"]
[207,"Коркинский муниципальный округ","г Коркино","СНТ Шахтер ЭВРЗ",117,0,"АО «Газпром газораспределение Челябинск»",{"$nulls":8},117,null,"январь","декабрь"]
[208,"Коркинский муниципальный округ","г Коркино","СНТ Южный",59,0,"АО «Газпром газораспределение Челябинск»",{"$nulls":8},59,null,"январь","декабрь"]
[209,"Коркинский муниципальный округ","рп Первомайский","СНТ Цементник-2",26,0,"АО «Газпром газораспределение Челябинск»",{"$nulls":8},26,null,"январь","декабрь"]
[210,"Коркинский муниципальный округ","рп Первомайский","СНТ Цементник-3",5,0,"АО «Газпром газораспределение Челябинск»",{"$nulls":8},5,null,"январь","декабрь"]
[211,"Коркинский муниципальный округ","рп Роза","СНТ Авангард",2,0,"АО «Газпром газораспределение Челябинск»",{"$nulls":8},2,null,"январь","декабрь"]
[212,"Красноармейский муниципальный район","д Федоровка","СНТ Садовод",26,0,"АО «Газпром газораспределение Челябинск»",{"$nulls":8},26,null,"январь","декабрь"]
[213,"Красноармейский муниципальный район","п Лазурный","СНТ Дачник",7,0,"АО «Газпром газораспределение Челябинск»",{"$nulls":8},7,null,"январь","декабрь"]
[214,"Красноармейский муниципальный район","п Слава","ДНТ Дачник-1",31,0,"АО «Газпром газораспределение Челябинск»",{"$nulls":8},31,null,"январь","декабрь"]
[215,"Красноармейский муниципальный район","п Слава","ДНТ Северное",56,0,"АО «Газпром газораспределение Челябинск»",{"$nulls":8},56,null,"январь","декабрь"]
[216,"Красноармейский муниципальный район","п Слава","ДНТ Удачный",4,0,"АО «Газпром газораспределение Челябинск»",{"$nulls":8},4,null,"январь","декабрь"]
[217,"Красноармейский муниципальный район","с Миасское","СНТ Дружба",5,0,"АО «Газпром газораспределение Челябинск»",{"$nulls":8},5,null,"январь","декабрь"]
[218,"Красноармейский муниципальный район","с Миасское","СНТ Мичуринец",7,0,"АО «Газпром газораспределение Челябинск»",{"$nulls":8},7,null,"январь","декабрь"]
[219,"Кыштымский городской округ","г Кыштым","СНТ Белоозерский",34,0,"АО «Газпром газораспределение Челябинск»",{"$nulls":8},34,null,"январь","декабрь"]
[220,"Кыштымский городской округ","г Кыштым","СНТ Горняк",41,0,"АО «Газпром газораспределение Челябинск»",{"$nulls":8},41,null,"январь","декабрь"]
[221,"Кыштымский городской округ","г Кыштым","СНТ Дальняя Дача",202,0,"АО «Газпром газораспределение Челябинск»",{"$nulls":16},202,null,"январь","декабрь"]
[222,"Кыштымский городской округ","г Кыштым","СНТ Дружба",97,0,"АО «Газпром газораспределение Челябинск»",{"$nulls":16},97,null,"январь","декабрь"]
[223,"Кыштымский городской округ","г Кыштым","СНТ Калачевка",187,0,"АО «Газпром газораспределение Челябинск»",{"$nulls":16},187,null,"январь","декабрь"]
[224,"Кыштымский городской округ","г Кыштым","СНТ Кварц",1,0,"АО «Газпром газораспределение Челябинск»",{"$nulls":8},1,null,"январь","декабрь"]
[225,"Кыштымский городской округ","г Кыштым","СНТ Керамик",42,0,"АО «Газпром газораспределение Челябинск»",{"$nulls":16},42,null,"январь","декабрь"]
[226,"Кыштымский городской округ","г Кыштым","СНТ Лесовод",58,0,"АО «Газпром газораспределение Челябинск»",{"$nulls":16},58,null,"январь","декабрь"]
[227,"Кыштымский городской округ","г Кыштым","СНТ Мичуринец",177,0,"АО «Газпром газораспределение Челябинск»",{"$nulls":16},177,null,"январь","декабрь"]
[228,"Кыштымский городской округ","г Кыштым","СНТ Островок",59,0,"АО «Газпром газораспределение Челябинск»",{"$nulls":16},59,null,"январь","декабрь"]
[229,"Кыштымский городской округ","г Кыштым","СНТ Плесо",5,0,"АО «Газпром газораспределение Челябинск»",{"$nulls":16},5,null,"январь","декабрь"]
[230,"Кыштымский городской округ","г Кыштым","СНТ Рипус",97,0,"АО «Газпром газораспределение Челябинск»",{"$nulls":8},97,null,"январь","декабрь"]
[231,"Кыштымский городской округ","г Кыштым","СНТ Смолокурка",1,0,"АО «Газпром газораспределение Челябинск»",{"$nulls":8},1,null,"январь","декабрь"]
[232,"Кыштымский городской округ","г Кыштым","СНТ Строитель",1,0,"АО «Газпром газораспределение Челябинск»",{"$nulls":8},1,null,"январь","декабрь"]
[233,"Кыштымский городской округ","г Кыштым","СНТ Фаянс",23,0,"АО «Газпром газораспределение Челябинск»",{"$nulls":16},23,null,"январь","декабрь"]
[234,"Кыштымский городской округ","г Кыштым","СНТ Энергетик",13,0,"АО «Газпром газораспределение Челябинск»",{"$nulls":16},13,null,"январь","декабрь"]
[235,"Кыштымский городской округ","г Кыштым","СНТ Южный",226,0,"АО «Газпром газораспределение Челябинск»",{"$nulls":16},226,null,"январь","декабрь"]
[236,"Локомотивный городской округ","пгт Локомотивный","СНТ Звезда",1,0,"АО «Газпром газораспределение Челябинск»",{"$nulls":8},1,null,"январь","декабрь"]
[237,"Магнитогорский городской округ","г Магнитогорск","СНТ Калибровщик-3",607,0,"АО «Газпром газораспределение Челябинск»",{"$nulls":8},607,null,"январь","декабрь"]
[238,"Магнитогорский городской округ","г Магнитогорск","СНТ Калибровщик-4",108,0,"АО «Газпром газораспределение Челябинск»",{"$nulls":8},108,null,"январь","декабрь"]
[239,"Магнитогорский городской округ","г Магнитогорск","СНТ Лакомка",33,0,"АО «Газпром газораспределение Челябинск»",{"$nulls":8},33,null,"январь","декабрь"]
[240,"Магнитогорский городской округ","г Магнитогорск","СНТ Локомотив",298,0,"АО «Газпром газораспределение Челябинск»",{"$nulls":8},298,null,"январь","декабрь"]
[241,"Магнитогорский городской округ","г Магнитогорск","СНТ Метизник",1868,0,"АО «Газпром газораспределение Челябинск»",{"$nulls":8},1868,null,"январь","декабрь"]
[242,"Магнитогорский городской округ","г Магнитогорск","СНТ Мечта",41,0,"АО «Газпром газораспределение Челябинск»",{"$nulls":8},41,null,"январь","декабрь"]
[243,"Миасский городской округ","г Миасс","СНТ Автомобиль",559,0,"АО «Газпром газораспределение Челябинск»",{"$nulls":8},559,null,"январь","декабрь"]
[244,"Миасский городской округ","г Миасс","СНТ Восточное",3,0,"АО «Газпром газораспределение Челябинск»",{"$nulls":8},3,null,"январь","декабрь"]
[245,"Миасский городской округ","г Миасс","СНТ Движенец",3,0,"АО «Газпром газораспределение Челябинск»",{"$nulls":8},3,null,"январь","декабрь"]
[246,"Миасский городской округ","г Миасс","СНТ ЖБИ",24,0,"АО «Газпром газораспределение Челябинск»",{"$nulls":8},24,null,"январь","декабрь"]
[247,"Миасский городской округ","г Миасс","СНТ Железнодорожник",134,0,"АО «Газпром газораспределение Челябинск»",{"$nulls":8},134,null,"январь","декабрь"]
[248,"Миасский городской округ","г Миасс","СНТ Ильмены",377,0,"АО «Газпром газораспределение Челябинск»",{"$nulls":8},377,null,"январь","декабрь"]
[249,"Миасский городской округ","г Миасс","СНТ Ильмены Южные",107,0,"АО «Газпром газораспределение Челябинск»",{"$nulls":8},107,null,"январь","декабрь"]
[250,"Миасский городской округ","г Миасс","СНТ Ильмены-2",92,0,"АО «Газпром газораспределение Челябинск»",{"$nulls":8},92,null,"январь","декабрь"]
[251,"Миасский городской округ","г Миасс","СНТ Локомотив",63,0,"АО «Газпром газораспределение Челябинск»",{"$nulls":8},63,null,"январь","декабрь"]
[252,"Миасский городской округ","г Миасс","СНТ Маяк",80,0,"АО «Газпром газораспределение Челябинск»",{"$nulls":8},80,null,"январь","декабрь"]
[253,"Миасский городской округ","г Миасс","СНТ Ольховый",8,0,"АО «Газпром газораспределение Челябинск»",{"$nulls":8},8,null,"январь","декабрь"]
[254,"Миасский городской округ","г Миасс","СНТ Радуга",3,0,"АО «Газпром газораспределение Челябинск»",{"$nulls":8},3,null,"январь","декабрь"]
[255,"Миасский городской округ","г Миасс","СНТ Речной",120,0,"АО «Газпром газораспределение Челябинск»",{"$nulls":8},120,null,"январь","декабрь"]
[256,"Миасский городской округ","г Миасс","СНТ Смородинка",121,0,"АО «Газпром газораспределение Челябинск»",{"$nulls":8},121,null,"январь","декабрь"]
[257,"Миасский городской округ","г Миасс","СНТ Строитель-1",87,0,"АО «Газпром газораспределение Челябинск»",{"$nulls":8},87,null,"январь","декабрь"]
[258,"Миасский городской округ","г Миасс","СНТ Строитель-2",259,0,"АО «Газпром газораспределение Челябинск»",{"$nulls":8},259,null,"январь","декабрь"]
[259,"Миасский городской округ","г Миасс","СНТ Урал-1",242,0,"АО «Газпром газораспределение Челябинск»",{"$nulls":8},242,null,"январь","декабрь"]
[260,"Миасский городской округ","г Миасс","СНТ Урал-2",186,0,"АО «Газпром газораспределение Челябинск»",{"$nulls":8},186,null,"январь","декабрь"]
[261,"Миасский городской округ","г Миасс","СНТ Урал-4",157,0,"АО «Газпром газораспределение Челябинск»",{"$nulls":8},157,null,"январь","декабрь"]
[262,"Миасский городской округ","г Миасс","СНТ Урал-4А",56,0,"АО «Газпром газораспределение Челябинск»",{"$nulls":8},56,null,"январь","декабрь"]
[263,"Миасский городской округ","г Миасс","СНТ Урал-4В",2,0,"АО «Газпром газораспределение Челябинск»",{"$nulls":8},2,null,"январь","декабрь"]
[264,"Миасский городской округ","г Миасс","СНТ Урал-5",121,0,"АО «Газпром газораспределение Челябинск»",{"$nulls":8},121,null,"январь","декабрь"]
[265,"Миасский городской округ","г Миасс","СНТ Учитель",56,0,"АО «Газпром газораспределение Челябинск»",{"$nulls":8},56,null,"январь","декабрь"]
[266,"Озерский городской округ","п Новогорный","СНТ Кооператор",7,0,"АО «Газпром газораспределение Челябинск»",{"$nulls":8},7,null,"январь","декабрь"]
[267,"Саткинский муниципальный округ","г Сатка","СНТ Металлург-1",1,0,"АО «Газпром газораспределение Челябинск»",{"$nulls":8},1,null,"январь","декабрь"]
[268,"Саткинский муниципальный округ","г Сатка","СНТ Ромашка",2,0,"АО «Газпром газораспределение Челябинск»",{"$nulls":8},2,null,"январь","декабрь"]
[269,"Саткинский муниципальный округ","п Нижняя Сатка","СНТ Строитель-3",2,0,"АО «Газпром газораспределение Челябинск»",{"$nulls":8},2,null,"январь","декабрь"]
[270,"Саткинский муниципальный округ","рп Межевой","СНТ Айское",34,0,"АО «Газпром газораспределение Челябинск»",{"$nulls":8},34,null,"январь","декабрь"]
[271,"Саткинский муниципальный округ","рп Межевой","СНТ Цепиловка",6,0,"АО «Газпром газораспределение Челябинск»",{"$nulls":8},6,null,"январь","декабрь"]
[272,"Троицкий городской округ","г Троицк","СНТ № 1 ГРЭС",29,0,"АО «Газпром газораспределение Челябинск»",{"$nulls":8},29,null,"январь","декабрь"]
[273,"Троицкий городской округ","г Троицк","СНТ Дизелист",1,0,"АО «Газпром газораспределение Челябинск»",{"$nulls":8},1,null,"январь","декабрь"]
[274,"Троицкий городской округ","г Троицк","СНТ Дружба",1,0,"АО «Газпром газораспределение Челябинск»",{"$nulls":8},1,null,"январь","декабрь"]
[275,"Троицкий городской округ","г Троицк","СНТ Полет",26,0,"АО «Газпром газораспределение Челябинск»",{"$nulls":8},26,null,"январь","декабрь"]
[276,"Троицкий городской округ","г Троицк","СНТ Садовод-Любитель",51,0,"АО «Газпром газораспределение Челябинск»",{"$nulls":8},51,null,"январь","декабрь"]
[277,"Троицкий городской округ","г Троицк","СНТ Станкостроитель",1,0,"АО «Газпром газораспределение Челябинск»",{"$nulls":8},1,null,"январь","декабрь"]
[278,"Троицкий городской округ","г Троицк","СНТ Тюльпан",1,0,"АО «Газпром газораспределение Челябинск»",{"$nulls":8},1,null,"январь","декабрь"]
[279,"Троицкий городской округ","г Троицк","СНТ Урожай",1,0,"АО «Газпром газораспределение Челябинск»",{"$nulls":8},1,null,"январь","декабрь"]
[280,"Увельский муниципальный район","п Увельский","СНТ Витамин",15,0,"АО «Газпром газораспределение Челябинск»",{"$nulls":8},15,null,"январь","декабрь"]
[281,"Чебаркульский городской округ","г Чебаркуль","СНТ Восточный",81,0,"АО «Газпром газораспределение Челябинск»",{"$nulls":8},81,null,"январь","декабрь"]
[282,"Чебаркульский городской округ","г Чебаркуль","СНТ Крановщик",169,0,"АО «Газпром газораспределение Челябинск»",{"$nulls":8},169,null,"январь","декабрь"]
[283,"Чебаркульский городской округ","г Чебаркуль","СНТ Курортник",2,0,"АО «Газпром газораспределение Челябинск»",{"$nulls":8},2,null,"январь","декабрь"]
[284,"Чебаркульский городской округ","г Чебаркуль","СНТ Курортник-1",49,0,"АО «Газпром газораспределение Челябинск»",{"$nulls":8},49,null,"январь","декабрь"]
[285,"Чебаркульский городской округ","г Чебаркуль","СНТ Литейщик",72,0,"АО «Газпром газораспределение Челябинск»",{"$nulls":8},72,null,"январь","декабрь"]
[286,"Чебаркульский городской округ","г Чебаркуль","СНТ Медик",82,0,"АО «Газпром газораспределение Челябинск»",{"$nulls":8},82,null,"январь","декабрь"]
[287,"Чебаркульский городской округ","г Чебаркуль","СНТ Металлист",63,0,"АО «Газпром газораспределение Челябинск»",{"$nulls":8},63,null,"январь","декабрь"]
[288,"Чебаркульский городской округ","г Чебаркуль","СНТ Металлург-1",29,0,"АО «Газпром газораспределение Челябинск»",{"$nulls":8},29,null,"январь","декабрь"]
[289,"Чебаркульский городской округ","г Чебаркуль","СНТ Металлург-2",239,0,"АО «Газпром газораспределение Челябинск»",{"$nulls":8},239,null,"январь","декабрь"]
[290,"Чебаркульский городской округ","г Чебаркуль","СНТ Металлург-3",132,0,"АО «Газпром газораспределение Челябинск»",{"$nulls":8},132,null,"январь","декабрь"]
[291,"Чебаркульский городской округ","г Чебаркуль","СНТ Учительский",121,0,"АО «Газпром газораспределение Челябинск»",{"$nulls":8},121,null,"январь","декабрь"]
[292,"Чебаркульский городской округ","г Чебаркуль","СНТ Швейник",76,0,"АО «Газпром газораспределение Челябинск»",{"$nulls":8},76,null,"январь","декабрь"]
[293,"Южноуральский городской округ","г Южноуральск","СНТ Автомобилист",28,0,"АО «Газпром газораспределение Челябинск»",{"$nulls":8},28,null,"январь","декабрь"]
[294,"Южноуральский городской округ","г Южноуральск","СНТ АИЗ-2",48,0,"АО «Газпром газораспределение Челябинск»",{"$nulls":8},48,null,"январь","декабрь"]
[295,"Южноуральский городской округ","г Южноуральск","СНТ АИЗ-3",2,0,"АО «Газпром газораспределение Челябинск»",{"$nulls":8},2,null,"январь","декабрь"]
[296,"Южноуральский городской округ","г Южноуральск","СНТ Березка-1",38,0,"АО «Газпром газораспределение Челябинск»",{"$nulls":8},38,null,"январь","декабрь"]
[297,"Южноуральский городской округ","г Южноуральск","СНТ Березка-3",27,0,"АО «Газпром газораспределение Челябинск»",{"$nulls":8},27,null,"январь","декабрь"]
[298,"Южноуральский городской округ","г Южноуральск","СНТ Бодрость",4,0,"АО «Газпром газораспределение Челябинск»",{"$nulls":8},4,null,"январь","декабрь"]
[299,"Южноуральский городской округ","г Южноуральск","СНТ Здоровье",5,0,"АО «Газпром газораспределение Челябинск»",{"$nulls":8},5,null,"январь","декабрь"]
[300,"Южноуральский городской округ","г Южноуральск","СНТ Здоровье-1",29,0,"АО «Газпром газораспределение Челябинск»",{"$nulls":8},29,null,"январь","декабрь"]
[301,"Южноуральский городской округ","г Южноуральск","СНТ Здоровье-10",1,0,"АО «Газпром газораспределение Челябинск»",{"$nulls":8},1,null,"январь","декабрь"]
[302,"Южноуральский городской округ","г Южноуральск","СНТ Здоровье-11",1,0,"АО «Газпром газораспределение Челябинск»",{"$nulls":8},1,null,"январь","декабрь"]
[303,"Южноуральский городской округ","г Южноуральск","СНТ Здоровье-12",1,0,"АО «Газпром газораспределение Челябинск»",{"$nulls":8},1,null,"январь","декабрь"]
[304,"Южноуральский городской округ","г Южноуральск","СНТ Здоровье-13",1,0,"АО «Газпром газораспределение Челябинск»",{"$nulls":8},1,null,"январь","декабрь"]
[305,"Южноуральский городской округ","г Южноуральск","СНТ Здоровье-14",1,0,"АО «Газпром газораспределение Челябинск»",{"$nulls":8},1,null,"январь","декабрь"]
[306,"Южноуральский городской округ","г Южноуральск","СНТ Здоровье-15",1,0,"АО «Газпром газораспределение Челябинск»",{"$nulls":8},1,null,"январь","декабрь"]
[307,"Южноуральский городской округ","г Южноуральск","СНТ Здоровье-16",1,0,"АО «Газпром газораспределение Челябинск»",{"$nulls":8},1,null,"январь","декабрь"]
[308,"Южноуральский городской округ","г Южноуральск","СНТ Здоровье-17",1,0,"АО «Газпром газораспределение Челябинск»",{"$nulls":8},1,null,"январь","декабрь"]
[309,"Южноуральский городской округ","г Южноуральск","СНТ Здоровье-18",1,0,"АО «Газпром газораспределение Челябинск»",{"$nulls":8},1,null,"январь","декабрь"]
[310,"Южноуральский городской округ","г Южноуральск","СНТ Здоровье-19",1,0,"АО «Газпром газораспределение Челябинск»",{"$nulls":8},1,null,"январь","декабрь"]
[311,"Южноуральский городской округ","г Южноуральск","СНТ Здоровье-2",1,0,"АО «Газпром газораспределение Челябинск»",{"$nulls":8},1,null,"январь","декабрь"]
[312,"Южноуральский городской округ","г Южноуральск","СНТ Здоровье-20",1,0,"АО «Газпром газораспределение Челябинск»",{"$nulls":8},1,null,"январь","декабрь"]
[313,"Южноуральский городской округ","г Южноуральск","СНТ Здоровье-21",1,0,"АО «Газпром газораспределение Челябинск»",{"$nulls":8},1,null,"январь","декабрь"]
[314,"Южноуральский городской округ","г Южноуральск","СНТ Здоровье-3",31,0,"АО «Газпром газораспределение Челябинск»",{"$nulls":8},31,null,"январь","декабрь"]
[315,"Южноуральский городской округ","г Южноуральск","СНТ Здоровье-4",1,0,"АО «Газпром газораспределение Челябинск»",{"$nulls":8},1,null,"январь","декабрь"]
[316,"Южноуральский городской округ","г Южноуральск","СНТ Здоровье-5",1,0,"АО «Газпром газораспределение Челябинск»",{"$nulls":8},1,null,"январь","декабрь"]
[317,"Южноуральский городской округ","г Южноуральск","СНТ Здоровье-6",1,0,"АО «Газпром газораспределение Челябинск»",{"$nulls":8},1,null,"январь","декабрь"]
[318,"Южноуральский городской округ","г Южноуральск","СНТ Здоровье-7",1,0,"АО «Газпром газораспределение Челябинск»",{"$nulls":8},1,null,"январь","декабрь"]
[319,"Южноуральский городской округ","г Южноуральск","СНТ Здоровье-8",1,0,"АО «Газпром газораспределение Челябинск»",{"$nulls":8},1,null,"январь","декабрь"]
[320,"Южноуральский городской округ","г Южноуральск","СНТ Здоровье-9",1,0,"АО «Газпром газораспределение Челябинск»",{"$nulls":8},1,null,"январь","декабрь"]
[321,"Южноуральский городской округ","г Южноуральск","СНТ Металлист",80,0,"АО «Газпром газораспределение Челябинск»",{"$nulls":8},80,null,"январь","декабрь"]
[322,"Южноуральский городской округ","г Южноуральск","СНТ Пенсионер",132,0,"АО «Газпром газораспределение Челябинск»",{"$nulls":8},132,null,"январь","декабрь"]
[323,"Южноуральский городской округ","г Южноуральск","СНТ Ремонтник",22,0,"АО «Газпром газораспределение Челябинск»",{"$nulls":8},22,null,"январь","декабрь"]
[324,"Южноуральский городской округ","г Южноуральск","СНТ Строитель",114,0,"АО «Газпром газораспределение Челябинск»",{"$nulls":8},114,null,"январь","декабрь"]
[325,"Южноуральский городской округ","г Южноуральск","СНТ Фарфорист-1",103,0,"АО «Газпром газораспределение Челябинск»",{"$nulls":8},103,null,"январь","декабрь"]
[326,"Южноуральский городской округ","г Южноуральск","СНТ Фарфорист-2",2,0,"АО «Газпром газораспределение Челябинск»",{"$nulls":8},2,null,"январь","декабрь"]
[327,"Южноуральский городской округ","г Южноуральск","СНТ ЮАИЗ-3",39,0,"АО «Газпром газораспределение Челябинск»",{"$nulls":8},39,null,"январь","декабрь"]
[328,"Южноуральский городской округ","г Южноуральск","СНТ Южное",20,0,"АО «Газпром газораспределение Челябинск»",{"$nulls":8},20,null,"январь","декабрь"]
[329,"Южноуральский городской округ","г Южноуральск","СНТ Южноуральской ГРЭС «Энергетик»",178,0,"АО «Газпром газораспределение Челябинск»",{"$nulls":8},178,null,"январь","декабрь"]
[330,"Челябинский городской округ","г Челябинск","СНТ Часовщик",31,0,"АО «Газпром газораспределение Челябинск»",{"$nulls":8},31,null,"январь","декабрь"]
[331,"Челябинский городской округ","г Челябинск","СНТ Пищевик",86,0,"АО «Газпром газораспределение Челябинск»",{"$nulls":8},86,null,"январь","декабрь"]
[332,"Челябинский городской округ","г Челябинск","СНТ Курочкино-1",1,0,"АО «Газпром газораспределение Челябинск»",{"$nulls":8},1,null,"январь","декабрь"]
[333,"Челябинский городской округ","г Челябинск","СНТ Дружба",3582,0,"АО «Газпром газораспределение Челябинск»",{"$nulls":8},3582,null,"январь","декабрь"]
[334,"Сосновский муниципальный район","д Таловка","СНТ Юбилейный",4,null,"ООО «Классик»",{"$nulls":4},4,4,"январь","сентябрь"]
[335,"Сосновский муниципальный район","п Полетаево","СНТ Березка",2,0,"ООО «Классик»",1,1,"июль","июль",{"$nulls":12},1,1,"июль","июль"]
[336,"Сосновский муниципальный район","д Малиновка","СНТ Малиновка ",99,0,"ООО «Классик»",{"$nulls":12},63,63,"июль","июль",36,36,"январь","январь"]
[337,"Магнитогорский городской округ","г. Магнитогорск","СНТ Благодатный",{"$f":"H346+L346+P346+T346+X346+AB346+AF346+AJ346+AN346","v":8},{"$f":"I346+M346+Q346+U346+Y346+AC346+AG346+AK346+AO346","v":0},"ООО «Магнитогорскгазстрой»",{"$nulls":24},8,null,"декабрь","декабрь"]
[338,"Магнитогорский городской округ","г. Магнитогорск","СНТ Воскресенское",5,0,"ООО «Магнитогорскгазстрой»",{"$nulls":24},5,null,"декабрь","декабрь"]
[339,"Магнитогорский городской округ","г. Магнитогорск","СНТ «Богатый остров» ",16,0,"ООО «Магнитогорскгазстрой»",{"$nulls":8},16,null,"декабрь","декабрь"]
[340,"Магнитогорский городской округ","г. Магнитогорск","СНТ «Садко»",13,0,"ООО «Магнитогорскгазстрой»",{"$nulls":12},13,null,"декабрь","декабрь"]
[341,"Магнитогорский городской округ","г. Магнитогорск","СНТ СН «им. Мичурина» №1",14,0,"ООО «Магнитогорскгазстрой»",{"$nulls":16},14,null,"декабрь","декабрь"]
[342,"Магнитогорский городской округ","г. Магнитогорск","СНТ «Наука»",1,0,"ООО «Магнитогорскгазстрой»",{"$nulls":16},1,null,"декабрь","декабрь"]
[343,"Магнитогорский городской округ","г. Магнитогорск","СНТ СН «им. Мичурина» №2",8,0,"ООО «Магнитогорскгазстрой»",{"$nulls":16},8,null,"декабрь","декабрь"]
[344,"Магнитогорский городской округ","г. Магнитогорск","СНТ СН «им. Мичурина» №3",34,0,"ООО «Магнитогорскгазстрой»",{"$nulls":20},34,null,"декабрь","декабрь"]
[345,"Магнитогорский городской округ","г. Магнитогорск","СНТ СН «им. Мичурина» №4",13,0,"ООО «Магнитогорскгазстрой»",{"$nulls":16},13,null,"декабрь","декабрь"]
[346,"Магнитогорский городской округ","г. Магнитогорск","СНТ СН «им. Мичурина» №5",14,0,"ООО «Магнитогорскгазстрой»",{"$nulls":16},14,null,"декабрь","декабрь"]
[347,"Магнитогорский городской округ","г. Магнитогорск","СНТ Звезда",3,0,"ООО «Магнитогорскгазстрой»",{"$nulls":12},3,null,"декабрь","декабрь"]
[348,"Магнитогорский городской округ","г Магнитогорск","СНТИ Забота",81,0,"МУП «Магнитогорские газовые сети»",{"$nulls":20},81,81,"декабрь","декабрь"]
[349,"Магнитогорский городской округ","г Магнитогорск","ОПК Коммунальник",166,0,"МУП «Магнитогорские газовые сети»",{"$nulls":12},166,166,"декабрь","декабрь"]
[350,"Магнитогорский городской округ","г Магнитогорск","СНТ Строитель-3 сад №4",788,0,"МУП «Магнитогорские газовые сети»",{"$nulls":8},788,788,"декабрь","декабрь"]
[351,"Магнитогорский городской округ","г Магнитогорск","СНТ Строитель-3 сад №3",467,0,"МУП «Магнитогорские газовые сети»",{"$nulls":8},467,467,"декабрь","декабрь"]
[352,"Магнитогорский городской округ","г Магнитогорск","ПС «Экология»",85,0,"МУП «Магнитогорские газовые сети»",{"$nulls":20},85,85,"декабрь","декабрь"]
[353,"Магнитогорский городской округ","г Магнитогорск","СНТ «Уралец»",829,0,"МУП «Магнитогорские газовые сети»",{"$nulls":16},829,829,"декабрь","декабрь"]
[354,"Магнитогорский городской округ","г Магнитогорск","СНТ «Горняк»",548,0,"МУП «Магнитогорские газовые сети»",{"$nulls":16},548,548,"декабрь","декабрь"]
[355,"Магнитогорский городской округ","г Магнитогорск","СНТСН «Коммунальщик»",28,0,"МУП «Магнитогорские газовые сети»",{"$nulls":16},28,28,"декабрь","декабрь"]
[356,"Магнитогорский городской округ","г Магнитогорск","СНТСН «Зеленая долина»",607,0,"МУП «Магнитогорские газовые сети»",{"$nulls":20},607,607,"декабрь","декабрь"]
[357,"Магнитогорский городской округ","г Магнитогорск"," СНТСН «Надежда»",186,0,"МУП «Магнитогорские газовые сети»",{"$nulls":20},186,186,"декабрь","декабрь"]
[358,"Магнитогорский городской округ","г Магнитогорск","СНТ «Машиностроитель-2»",172,0,"МУП «Магнитогорские газовые сети»",{"$nulls":16},172,172,"декабрь","декабрь"]
[359,"Магнитогорский городской округ","г Магнитогорск"," СНТ «Калибровщик» сад №1",97,0,"МУП «Магнитогорские газовые сети»",{"$nulls":12},97,97,"декабрь","декабрь"]
[360,"Магнитогорский городской округ","г Магнитогорск","СНТСН Цементник",4,0,"МУП «Магнитогорские газовые сети»",{"$nulls":20},4,4,"декабрь","декабрь"]
[361,"Магнитогорский городской округ","г Магнитогорск","СНТ Метизник",4,0,"МУП «Магнитогорские газовые сети»",{"$nulls":20},4,4,"декабрь","декабрь"]
[362,"Магнитогорский городской округ","г Магнитогорск","СНТ Строитель-1 Сад №1",2,0,"МУП «Магнитогорские газовые сети»",{"$nulls":20},2,2,"декабрь","декабрь"]
[363,"Магнитогорский городской округ","г Магнитогорск","СНТ Строитель-1 Сад №2",2,0,"МУП «Магнитогорские газовые сети»",{"$nulls":20},2,2,"декабрь","декабрь"]
[364,"Магнитогорский городской округ","г Магнитогорск","СНТ Строитель-1 Сад №5",2,0,"МУП «Магнитогорские газовые сети»",{"$nulls":20},2,2,"декабрь","декабрь"]
[365,"Магнитогорский городской округ","г Магнитогорск","СНТ Строитель-1 Сад №6",2,0,"МУП «Магнитогорские газовые сети»",{"$nulls":20},2,2,"декабрь","декабрь"]
[366,"Магнитогорский городской округ","г Магнитогорск","СНТ Строитель-1 Сад №7",2,0,"МУП «Магнитогорские газовые сети»",{"$nulls":20},2,2,"декабрь","декабрь"]
[367,"Магнитогорский городской округ","г Магнитогорск","СНТ Строитель-1 Сад №8",2,0,"МУП «Магнитогорские газовые сети»",{"$nulls":20},2,2,"декабрь","декабрь"]
[368,"Магнитогорский городской округ","г Магнитогорск","СНТ Металлург-2",2,0,"МУП «Магнитогорские газовые сети»",{"$nulls":20},2,2,"декабрь","декабрь"]
[369,"Магнитогорский городской округ","г Магнитогорск","СНТ «Калибровщик-2»",4,0,"МУП «Магнитогорские газовые сети»",{"$nulls":20},4,4,"декабрь","декабрь"]
[370,"Магнитогорский городской округ","г Магнитогорск","СПК Машиностроитель",2,0,"МУП «Магнитогорские газовые сети»",{"$nulls":20},2,2,"декабрь","декабрь"]
[371,"Магнитогорский городской округ","г Магнитогорск","СНТ  Ремонтник",2,0,"МУП «Магнитогорские газовые сети»",{"$nulls":20},2,2,"декабрь","декабрь"]
[372,"Магнитогорский городской округ","г Магнитогорск","СНТ Мичурина №6",2,0,"МУП «Магнитогорские газовые сети»",{"$nulls":20},2,2,"декабрь","декабрь"]
[373,"Озерский городской округ","г. Озерск","СНТ «Уралсад № 18»",4,0,"ООО «Озерскгаз»",{"$nulls":9},4,"декабрь","декабрь"]
[374,"Озерский городской округ","г. Озерск","СНТ «Энергетик»",2,0,"ООО «Озерскгаз»",{"$nulls":5},2,"декабрь","декабрь"]
[375,"Озерский городской округ","г. Озерск","СНТ «Родник»",6,0,"ООО «Озерскгаз»",{"$nulls":29},6,"декабрь","декабрь"]
[376,"Озерский городской округ","г. Озерск","СНТ «Черемушки»",8,0,"ООО «Озерскгаз»",{"$nulls":29},8,"декабрь","декабрь"]
[377,"Озерский городской округ","г. Озерск","СНТСН \"Тюльпан\"",5,0,"ООО «Озерскгаз»",{"$nulls":5},5,"декабрь","декабрь"]
[378,"Озерский городской округ","г. Озерск","СНТ «Зеленая горка»",7,0,"ООО «Озерскгаз»",{"$nulls":9},7,"декабрь","декабрь"]
[379,"Озерский городской округ","г. Озерск","СНТ «Вишенка»",3,0,"ООО «Озерскгаз»",{"$nulls":5},3,"декабрь","декабрь"]
[380,"Озерский городской округ","г. Озерск","СНТ «Союз»",2,0,"ООО «Озерскгаз»",{"$nulls":13},2,"декабрь","декабрь"]
[381,"Озерский городской округ","г. Озерск","СНТ «Боровинка»",11,0,"ООО «Озерскгаз»",{"$nulls":9},11,"декабрь","декабрь"]
[382,"Озерский городской округ","г. Озерск","СНТ «Сосновый бор»",4,0,"ООО «Озерскгаз»",{"$nulls":13},4,"декабрь","декабрь"]
[383,"Озерский городской округ","г. Озерск","СНТ «Солнечный»",5,0,"ООО «Озерскгаз»",{"$nulls":13},5,"декабрь","декабрь"]
[384,"Озерский городской округ","г. Озерск","СНТ «Южное»",2,0,"ООО «Озерскгаз»",{"$nulls":13},2,"декабрь","декабрь"]
[385,"Озерский городской округ","г. Озерск","СНТ «Наука»",1,0,"ООО «Озерскгаз»",{"$nulls":17},1,"декабрь","декабрь"]
[386,"Озерский городской округ","г. Озерск","СНТ «Малая Нанога»",10,0,"ООО «Озерскгаз»",{"$nulls":17},10,"декабрь","декабрь"]
[387,"Озерский городской округ","г. Озерск","СНТ «Светлячок»",3,0,"ООО «Озерскгаз»",{"$nulls":21},3,"декабрь","декабрь"]
[388,"Озерский городской округ","г. Озерск","СК «Простор»",2,0,"ООО «Озерскгаз»",{"$nulls":21},2,"декабрь","декабрь"]
[389,"Озерский городской округ","г. Озерск","СНТ «Разъезд»",5,0,"ООО «Озерскгаз»",{"$nulls":21},5,"декабрь","декабрь"]
[390,"Озерский городской округ","г. Озерск","СНТ «Успех»",2,0,"ООО «Озерскгаз»",{"$nulls":25},2,"декабрь","декабрь"]
[391,"Озерский городской округ","г. Озерск","СНТ «Весна»",8,0,"ООО «Озерскгаз»",{"$nulls":25},8,"декабрь","декабрь"]
[392,"Озерский городской округ","г. Озерск","СНТ «Росинка»",5,0,"ООО «Озерскгаз»",{"$nulls":33},5,"декабрь","декабрь"]
[393,"Озерский городской округ","г. Озерск","СНТ «Ранет»",6,0,"ООО «Озерскгаз»",{"$nulls":33},6,"декабрь","декабрь"]
[394,"Озерский городской округ","г. Озерск","СНТ «Уралец»",11,0,"ООО «Озерскгаз»",{"$nulls":33},11,"декабрь","декабрь"]
[395,"Озерский городской округ","г. Озерск","СНТ «Утро»",16,0,"ООО «Озерскгаз»",{"$nulls":33},16,"декабрь","декабрь"]
[396,"Озерский городской округ","поселок Метлино","СНТ «Тропик»",3,0,"ООО «Озерскгаз»",{"$nulls":5},3,"декабрь","декабрь"]
[397,"Озерский городской округ","поселок Метлино","СНТ «Околица»",5,0,"ООО «Озерскгаз»",{"$nulls":5},5,"декабрь","декабрь"]
[398,"Снежинский городской округ","г. Снежинск","СНТ Улыбка",25,0,"АО «Трансэнерго»",{"$nulls":8},25,25,"январь","декабрь"]
[399,"Снежинский городской округ","г. Снежинск","СНТ 11",2,0,"АО «Трансэнерго»",{"$nulls":12},2,2,"январь","декабрь"]
[400,"Снежинский городской округ","г. Снежинск","СНТ 1",4,0,"АО «Трансэнерго»",{"$nulls":12},4,0,"январь","декабрь"]
[401,"Снежинский городской округ","г. Снежинск","СНТ 5",4,0,"АО «Трансэнерго»",{"$nulls":12},4,4,"январь","декабрь"]
[402,"Снежинский городской округ","г. Снежинск","СНТ 14",4,0,"АО «Трансэнерго»",{"$nulls":12},4,4,"январь","декабрь"]
[403,"Снежинский городской округ","г. Снежинск","СНТ 17",2,0,"АО «Трансэнерго»",{"$nulls":12},2,2,"январь","декабрь"]
[404,"Снежинский городской округ","г. Снежинск","СНТ 2",6,0,"АО «Трансэнерго»",{"$nulls":12},6,6,"январь","декабрь"]
[405,"Снежинский городской округ","г. Снежинск","СНТ 3",4,0,"АО «Трансэнерго»",{"$nulls":12},4,4,"январь","декабрь"]
[406,"Снежинский городской округ","г. Снежинск","СНТ 8",9,0,"АО «Трансэнерго»",{"$nulls":12},9,9,"январь","декабрь"]
[407,"Снежинский городской округ","г. Снежинск","СНТ 9",14,0,"АО «Трансэнерго»",{"$nulls":12},14,14,"январь","декабрь"]
[408,"Снежинский городской округ","г. Снежинск","СНТ Теплая поляна",1,0,"АО «Трансэнерго»",{"$nulls":8},1,1,"январь","декабрь"]
[409,"Снежинский городской округ","г. Снежинск","СНТ Лесной",9,0,"АО «Трансэнерго»",9,0,"январь","декабрь"]
[410,"Челябинский городской округ","г. Челябинск","СНТ Авиатор",327,0,"АО «Челябинскгоргаз»",3,null,"июнь","июнь",{"$nulls":4},324,null,"январь","декабрь"]
[411,"Челябинский городской округ","г. Челябинск","СНТ Авиатор-2",94,0,"АО «Челябинскгоргаз»",8,null,"июнь","декабрь",2,null,"апрель","май",{"$nulls":8},85,null,"июнь","декабрь"]
[412,"Челябинский городской округ","г. Челябинск","СНТ АМЗ-1",69,0,"АО «Челябинскгоргаз»",{"$nulls":8},69,null,"январь","декабрь"]
[413,"Челябинский городской округ","г. Челябинск","СНТ АМЗ-2",45,0,"АО «Челябинскгоргаз»",{"$nulls":8},45,null,"январь","декабрь"]
[414,"Челябинский городской округ","г. Челябинск","СНТ Аэропорт",152,0,"АО «Челябинскгоргаз»",{"$nulls":8},152,null,"январь","декабрь"]
[415,"Челябинский городской округ","г. Челябинск","СНТ Аэропорт-2",167,0,"АО «Челябинскгоргаз»",{"$nulls":8},167,null,"январь","декабрь"]
[416,"Челябинский городской округ","г. Челябинск","СНТ Березка-2",497,0,"АО «Челябинскгоргаз»",{"$nulls":8},497,null,"январь","декабрь"]
[417,"Челябинский городской округ","г. Челябинск","СНТ Волна",209,0,"АО «Челябинскгоргаз»",{"$nulls":8},209,null,"январь","декабрь"]
[418,"Челябинский городской округ","г. Челябинск","СНТ ЖБИ-1",242,0,"АО «Челябинскгоргаз»",{"$nulls":8},242,null,"январь","декабрь"]
[419,"Челябинский городской округ","г. Челябинск","СНТ Жилищник",584,0,"АО «Челябинскгоргаз»",{"$nulls":8},584,null,"январь","декабрь"]
[420,"Челябинский городской округ","г. Челябинск","СНТ Здоровье",196,0,"АО «Челябинскгоргаз»",{"$nulls":4},1,null,"март","март",195,null,"январь","декабрь"]
[421,"Челябинский городской округ","г. Челябинск","СНТ Искра",1444,0,"АО «Челябинскгоргаз»",1,null,"май","май",{"$nulls":4},1443,null,"январь","декабрь"]
[422,"Челябинский городской округ","г. Челябинск","СНТ Колющенец",1394,0,"АО «Челябинскгоргаз»",{"$nulls":4},1,null,"август","август",1393,null,"январь","декабрь"]
[423,"Челябинский городской округ","г. Челябинск","СНТ Кооператор",48,0,"АО «Челябинскгоргаз»",{"$nulls":8},48,null,"январь","декабрь"]
[424,"Челябинский городской округ","г. Челябинск","СНТ Кристалл",122,0,"АО «Челябинскгоргаз»",{"$nulls":4},10,null,"январь","май",112,null,"январь","декабрь"]
[425,"Челябинский городской округ","г. Челябинск","СНТ Кузнец-1",175,0,"АО «Челябинскгоргаз»",{"$nulls":8},175,null,"январь","декабрь"]
[426,"Челябинский городской округ","г. Челябинск","СНТ Кузнец-2",127,0,"АО «Челябинскгоргаз»",{"$nulls":8},127,null,"январь","декабрь"]
[427,"Челябинский городской округ","г. Челябинск","СНТ Локомотив-1",583,0,"АО «Челябинскгоргаз»",5,null,"июнь","декабрь",{"$nulls":4},578,null,"январь","декабрь"]
[428,"Челябинский городской округ","г. Челябинск","СНТ Локомотив-2",561,0,"АО «Челябинскгоргаз»",{"$nulls":8},561,null,"январь","декабрь"]
[429,"Челябинский городской округ","г. Челябинск","СНТ Медик",962,0,"АО «Челябинскгоргаз»",2,null,"июнь","декабрь",{"$nulls":4},960,null,"январь","декабрь"]
[430,"Челябинский городской округ","г. Челябинск","СНТ Меридиан",276,0,"АО «Челябинскгоргаз»",{"$nulls":8},276,null,"январь","декабрь"]
[431,"Челябинский городской округ","г. Челябинск","СНТ Металлист-1",29,0,"АО «Челябинскгоргаз»",{"$nulls":8},29,null,"январь","декабрь"]
[432,"Челябинский городской округ","г. Челябинск","СНТ Металлист-2",749,0,"АО «Челябинскгоргаз»",{"$nulls":8},749,null,"январь","декабрь"]
[433,"Челябинский городской округ","г. Челябинск","СНТ Металлург",1447,0,"АО «Челябинскгоргаз»",1,null,"июнь","июнь",{"$nulls":4},1446,null,"январь","декабрь"]
[434,"Челябинский городской округ","г. Челябинск","СНТ Мечел",435,0,"АО «Челябинскгоргаз»",{"$nulls":8},435,null,"январь","декабрь"]
[435,"Челябинский городской округ","г. Челябинск","СНТ Мичуринец",680,0,"АО «Челябинскгоргаз»",{"$nulls":8},680,null,"январь","декабрь"]
[436,"Челябинский городской округ","г. Челябинск","СНТ Надежда",6,0,"АО «Челябинскгоргаз»",4,null,"июнь","октябрь",1,null,"январь","январь",1,null,"декабрь","декабрь"]
[437,"Челябинский городской округ","г. Челябинск","СНТ Нефтепродукт",63,0,"АО «Челябинскгоргаз»",{"$nulls":8},63,null,"январь","декабрь"]
[438,"Челябинский городской округ","г. Челябинск","СНТ Нефтяник",591,0,"АО «Челябинскгоргаз»",{"$nulls":4},1,null,"октябрь","октябрь",590,null,"январь","декабрь"]
[439,"Челябинский городской округ","г. Челябинск","СНТ Полет-1",225,0,"АО «Челябинскгоргаз»",{"$nulls":8},225,null,"январь","декабрь"]
[440,"Челябинский городской округ","г. Челябинск","СНТ Полет-2 ",469,0,"АО «Челябинскгоргаз»",{"$nulls":4},8,null,"апрель","октябрь",461,null,"январь","декабрь"]
[441,"Челябинский городской округ","г. Челябинск","СНТ Политехник ",158,0,"АО «Челябинскгоргаз»",{"$nulls":8},158,null,"январь","декабрь"]
[442,"Челябинский городской округ","г. Челябинск","СНТ Прогресс",585,0,"АО «Челябинскгоргаз»",{"$nulls":4},1,null,"март","март",584,null,"январь","декабрь"]
[443,"Челябинский городской округ","г. Челябинск","СНТ Рассвет ",554,0,"АО «Челябинскгоргаз»",{"$nulls":8},554,null,"январь","декабрь"]
[444,"Челябинский городской округ","г. Челябинск","СНТ Ремдеталь ",25,0,"АО «Челябинскгоргаз»",{"$nulls":8},25,null,"январь","декабрь"]
[445,"Челябинский городской округ","г. Челябинск","СНТ Родничок ",55,0,"АО «Челябинскгоргаз»",{"$nulls":8},55,null,"январь","декабрь"]
[446,"Челябинский городской округ","г. Челябинск","СНТ Ручеек ",5,0,"АО «Челябинскгоргаз»",{"$nulls":8},5,null,"январь","декабрь"]
[447,"Челябинский городской округ","г. Челябинск","СНТ Садовод Любитель-3",328,0,"АО «Челябинскгоргаз»",{"$nulls":8},328,null,"январь","декабрь"]
[448,"Челябинский городской округ","г. Челябинск","СНТ Садовод-Любитель 1",400,0,"АО «Челябинскгоргаз»",{"$nulls":8},400,null,"январь","декабрь"]
[449,"Челябинский городской округ","г. Челябинск","СНТ Садовод-Любитель-2",440,0,"АО «Челябинскгоргаз»",11,null,"июнь","декабрь",1,null,"апрель","апрель",428,null,"январь","декабрь"]
[450,"Челябинский городской округ","г. Челябинск","СНТ Самоцвет",128,0,"АО «Челябинскгоргаз»",{"$nulls":8},128,null,"январь","декабрь"]
[451,"Челябинский городской округ","г. Челябинск","СНТ Сигнал 3",608,0,"АО «Челябинскгоргаз»",2,null,"июнь","июнь",{"$nulls":4},606,null,"январь","декабрь"]
[452,"Челябинский городской округ","г. Челябинск","СНТ Сигнал 4",333,0,"АО «Челябинскгоргаз»",7,null,"июнь","декабрь",{"$nulls":4},326,null,"январь","декабрь"]
[453,"Челябинский городской округ","г. Челябинск","СНТ Сигнал-1",292,0,"АО «Челябинскгоргаз»",29,null,"июнь","декабрь",1,null,"январь","январь",262,null,"январь","декабрь"]
[454,"Челябинский городской округ","г. Челябинск","СНТ Сигнал-2",401,0,"АО «Челябинскгоргаз»",{"$nulls":8},401,null,"январь","декабрь"]
[455,"Челябинский городской округ","г. Челябинск","СНТ Силикатчик ",188,0,"АО «Челябинскгоргаз»",{"$nulls":8},188,null,"январь","декабрь"]
[456,"Челябинский городской округ","г. Челябинск","СНТ Слава",1314,0,"АО «Челябинскгоргаз»",{"$nulls":8},1314,null,"январь","декабрь"]
[457,"Челябинский городской округ","г. Челябинск","СНТ Спутник ",756,0,"АО «Челябинскгоргаз»",{"$nulls":8},756,null,"январь","декабрь"]
[458,"Челябинский городской округ","г. Челябинск","СНТ Станкостроитель 1",427,0,"АО «Челябинскгоргаз»",4,null,"июнь","декабрь",{"$nulls":4},423,null,"январь","декабрь"]
[459,"Челябинский городской округ","г. Челябинск","СНТ Станкостроитель-2 ",361,0,"АО «Челябинскгоргаз»",{"$nulls":8},361,null,"январь","декабрь"]
[460,"Челябинский городской округ","г. Челябинск","СНТ Строитель",312,0,"АО «Челябинскгоргаз»",{"$nulls":8},312,null,"январь","декабрь"]
[461,"Челябинский городской округ","г. Челябинск","СНТ Строитель 2",212,0,"АО «Челябинскгоргаз»",1,null,"июнь","июнь",{"$nulls":4},211,null,"январь","декабрь"]
[462,"Челябинский городской округ","г. Челябинск","СНТ Тракторосад 1-2",1871,0,"АО «Челябинскгоргаз»",{"$nulls":8},1871,null,"январь","декабрь"]
[463,"Челябинский городской округ","г. Челябинск","СНТ Тракторосад 4",1546,0,"АО «Челябинскгоргаз»",2,null,"июнь","июнь",9,null,"апрель","сентябрь",1535,null,"январь","декабрь"]
[464,"Челябинский городской округ","г. Челябинск","СНТ Тракторосад-3",2762,0,"АО «Челябинскгоргаз»",17,null,"июнь","декабрь",18,null,"январь","октябрь",2727,null,"январь","декабрь"]
[465,"Челябинский городской округ","г. Челябинск","СНТ Трубопроводчик",89,0,"АО «Челябинскгоргаз»",{"$nulls":8},89,null,"январь","декабрь"]
[466,"Челябинский городской округ","г. Челябинск","СНТ Трубопрокатчик 1",133,0,"АО «Челябинскгоргаз»",{"$nulls":8},133,null,"январь","декабрь"]
[467,"Челябинский городской округ","г. Челябинск","СНТ Трубопрокатчик 2",265,0,"АО «Челябинскгоргаз»",{"$nulls":8},265,null,"январь","декабрь"]
[468,"Челябинский городской округ","г. Челябинск","СНТ Трубопрокатчик 3",932,0,"АО «Челябинскгоргаз»",{"$nulls":8},932,null,"январь","декабрь"]
[469,"Челябинский городской округ","г. Челябинск","СНТ Трубопрокатчик 4",87,0,"АО «Челябинскгоргаз»",{"$nulls":8},87,null,"январь","декабрь"]
[470,"Челябинский городской округ","г. Челябинск","СНТ УВД по Челябинской области",274,0,"АО «Челябинскгоргаз»",{"$nulls":8},274,null,"январь","декабрь"]
[471,"Челябинский городской округ","г. Челябинск","СНТ Уралец",571,0,"АО «Челябинскгоргаз»",{"$nulls":8},571,null,"январь","декабрь"]
[472,"Челябинский городской округ","г. Челябинск","СНТ Факел ",165,0,"АО «Челябинскгоргаз»",{"$nulls":8},165,null,"январь","декабрь"]
[473,"Челябинский городской округ","г. Челябинск","СНТ Ферросад",286,0,"АО «Челябинскгоргаз»",{"$nulls":8},286,null,"январь","декабрь"]
[474,"Челябинский городской округ","г. Челябинск","СНТ Хлебосад",542,0,"АО «Челябинскгоргаз»",{"$nulls":8},542,null,"январь","декабрь"]
[475,"Челябинский городской округ","г. Челябинск","СНТ ЧМЗ",26,0,"АО «Челябинскгоргаз»",{"$nulls":8},26,null,"январь","декабрь"]
[476,"Челябинский городской округ","г. Челябинск","СНТ ЧМЗ-2",6,0,"АО «Челябинскгоргаз»",{"$nulls":8},6,null,"апрель","декабрь"]
[477,"Челябинский городской округ","г. Челябинск","СНТ ЧТЭЦ-3 Лесная поляна № 1",100,0,"АО «Челябинскгоргаз»",{"$nulls":8},100,null,"январь","декабрь"]
[478,"Челябинский городской округ","г. Челябинск","СНТ ЧТЭЦ-3 Лесная поляна № 2",7,0,"АО «Челябинскгоргаз»",{"$nulls":8},7,null,"январь","декабрь"]
[479,"Челябинский городской округ","г. Челябинск","СНТ ЧТЭЦ-3 Лесная поляна № 4",15,0,"АО «Челябинскгоргаз»",{"$nulls":8},15,null,"январь","декабрь"]
[480,"Челябинский городской округ","г. Челябинск","СНТ ЧТЭЦ-3 Лесная поляна № 5",6,0,"АО «Челябинскгоргаз»",{"$nulls":8},6,null,"январь","декабрь"]
[481,"Челябинский городской округ","г. Челябинск","СНТ Энергетик",245,0,"АО «Челябинскгоргаз»",{"$nulls":4},5,null,"апрель","октябрь",240,null,"январь","декабрь"]
[482,"Челябинский городской округ","г. Челябинск","СНТ Энергосад-1",98,0,"АО «Челябинскгоргаз»",{"$nulls":8},98,null,"январь","декабрь"]
[483,"Челябинский городской округ","г. Челябинск","СНТ Энергосад-2 ",96,0,"АО «Челябинскгоргаз»",{"$nulls":8},96,null,"январь","декабрь"]
[484,"Челябинский городской округ","г. Челябинск","СНТ Энергостроитель",112,0,"АО «Челябинскгоргаз»",{"$nulls":4},2,null,"апрель","апрель",110,null,"январь","декабрь"]
[485,"Челябинский городской округ","г. Челябинск","СНТ Янтарь",670,0,"АО «Челябинскгоргаз»",{"$nulls":8},670,null,"январь","декабрь"]
[486,"Челябинский городской округ","г. Челябинск","ТСН Крым",61,0,"АО «Челябинскгоргаз»",12,null,"июнь","октябрь",7,null,"март","декабрь",42,null,"январь","декабрь"]
[487,"Миасский городской округ","г. Миасс","СНТ Дачный",602,0,"ООО \"Тополь М\"",{"$nulls":8},602,null,"апрель","декабрь"]
[488,"Миасский городской округ","г. Миасс","СНТ Ежевика",29,0,"ООО \"Тополь М\"",{"$nulls":8},29,null,"апрель","декабрь"]
[489,"Миасский городской округ","г. Миасс","КС Восход",157,0,"ООО \"Тополь М\"",{"$nulls":8},157,null,"апрель","декабрь"]
[490,"Миасский городской округ","г. Миасс","КС Расцвет",287,0,"ООО \"Тополь М\"",{"$nulls":8},287,null,"апрель","декабрь"]
[491,"Миасский городской округ","г. Миасс","КС Золотая долина",156,0,"ООО \"Тополь М\"",{"$nulls":8},156,null,"апрель","декабрь"]
[492,"Миасский городской округ","г. Миасс","КС Золотая долина 2",181,0,"ООО \"Тополь М\"",{"$nulls":8},181,null,"апрель","декабрь"]
[493,"Миасский городской округ","г. Миасс","КС Железнодорожник",237,0,"ООО \"Тополь М\"",{"$nulls":8},237,null,"апрель","декабрь"]